{"text_format":"3","workbook":"xlsx","n_sheets":6,"sheets":["Nadzorna ploča","Prodaja","Dobit","Troškovi","Porezi","Kategorije"],"not_rendered":{"images":1,"defined_names":34},"read":"whole","date_system":"1900"}

{"sheet":"Nadzorna ploča","index":0,"n_rows":22,"n_cols":8,"rows_kept":22,"merged":[[0,2,0,4],[0,6,3,7],[5,1,5,7]]}
[null,"Izvješće o prihodima i rashodima","Za [mjesec u godini] koji završava [dan-mjesec-godina]"]
[null,"Naziv tvrtke","Navedeno u tisućama"]
[null,"Trenutačna bruto marža  [L/J]",{"$f":"IFERROR(IF(Ukupno_bruto_dobit=0,\"-\",Ukupno_bruto_dobit/Ukupno_prihod_od_prodaje),\"-\")","v":"-"}]
[null,"Trenutačni povrat prihoda od prodaje  [T/J]",{"$f":"IFERROR(IF(Neto_dobit=0,\"-\",Neto_dobit/Ukupno_prihod_od_prodaje),\"-\")","v":"-"}]
[]
[null,"Ne mijenjajte kategorije na ovom radnom listu da ne biste pokvarili formule. Dodajte kategorije i ažurirajte odgovarajuće radne listove unosima pomoću radnog lista Kategorija. Taj će se radni list automatski ažurirati."]
[null,"Sažetak","Ukupni iznos za prethodno razdoblje","Ukupni proračun","Ukupan trenutačni iznos\nRazdoblje","Ukupan iznos za trenutačno razdoblje kao % prodaje","Ukupni % promjene u odnosu na prethodno razdoblje","Ukupni % promjene proračuna"]
[null,"Ukupni prihod od prodaje  [J]",{"$f":"SUMIFS(PrihodOdProdaje[Prethodno razdoblje],PrihodOdProdaje[Vrsta prihoda],\"Prihod od prodaje\")","v":0},{"$f":"SUMIFS(PrihodOdProdaje[Proračun],PrihodOdProdaje[Vrsta prihoda],\"Prihod od prodaje\")","v":0},{"$f":"SUMIFS(PrihodOdProdaje[Trenutačno razdoblje],PrihodOdProdaje[Vrsta prihoda],\"Prihod od prodaje\")","v":0},{"$f":"SUMIFS(PrihodOdProdaje[Trenutačno razdoblje kao % prodaje],PrihodOdProdaje[Vrsta prihoda],\"Prihod od prodaje\")","v":{"v":0,"d":"0.00%"}},{"$f":"SUMIFS(PrihodOdProdaje[% promjene u odnosu na prethodno razdoblje],PrihodOdProdaje[Vrsta prihoda],\"Prihod od prodaje\")","v":{"v":0,"d":"0.00%"}},{"$f":"SUMIFS(PrihodOdProdaje[% promjene proračuna],PrihodOdProdaje[Vrsta prihoda],\"Prihod od prodaje\")","v":{"v":0,"d":"0.00%"}}]
[{"$nulls":3},{"$f":"PrihodOdProdaje[[#Totals],[Proračun]]","v":0},{"$f":"PrihodOdProdaje[[#Totals],[Trenutačno razdoblje]]","v":0},{"$f":"SUMIFS(PrihodOdProdaje[Trenutačno razdoblje kao % prodaje],PrihodOdProdaje[Vrsta prihoda],\"Trošak prodaje\")","v":{"v":0,"d":"0.00%"}},{"$f":"SUMIFS(PrihodOdProdaje[% promjene u odnosu na prethodno razdoblje],PrihodOdProdaje[Vrsta prihoda],\"Trošak prodaje\")","v":{"v":0,"d":"0.00%"}},{"$f":"SUMIFS(PrihodOdProdaje[% promjene proračuna],PrihodOdProdaje[Vrsta prihoda],\"Trošak prodaje\")","v":{"v":0,"d":"0.00%"}}]
[{"$nulls":3},{"$f":"PrihodOdProdaje[[#Totals],[Proračun]]","v":0},{"$f":"PrihodOdProdaje[[#Totals],[Trenutačno razdoblje]]","v":0},{"$f":"SUMIFS(PrihodOdProdaje[Trenutačno razdoblje kao % prodaje],PrihodOdProdaje[Vrsta prihoda],\"Trošak prodaje\")","v":{"v":0,"d":"0.00%"}},{"$f":"SUMIFS(PrihodOdProdaje[% promjene u odnosu na prethodno razdoblje],PrihodOdProdaje[Vrsta prihoda],\"Trošak prodaje\")","v":{"v":0,"d":"0.00%"}},{"$f":"SUMIFS(PrihodOdProdaje[% promjene proračuna],PrihodOdProdaje[Vrsta prihoda],\"Trošak prodaje\")","v":{"v":0,"d":"0.00%"}}]
[null,"Ukupni trošak prodaje  [K]",{"$f":"SUMIFS(PrihodOdProdaje[Prethodno razdoblje],PrihodOdProdaje[Vrsta prihoda],\"Trošak prodaje\")","v":0},{"$f":"SUMIFS(PrihodOdProdaje[Proračun],PrihodOdProdaje[Vrsta prihoda],\"Trošak prodaje\")","v":0},{"$f":"SUMIFS(PrihodOdProdaje[Trenutačno razdoblje],PrihodOdProdaje[Vrsta prihoda],\"Trošak prodaje\")","v":0},{"$f":"SUMIFS(PrihodOdProdaje[Trenutačno razdoblje kao % prodaje],PrihodOdProdaje[Vrsta prihoda],\"Trošak prodaje\")","v":{"v":0,"d":"0.00%"}},{"$f":"SUMIFS(PrihodOdProdaje[% promjene u odnosu na prethodno razdoblje],PrihodOdProdaje[Vrsta prihoda],\"Trošak prodaje\")","v":{"v":0,"d":"0.00%"}},{"$f":"SUMIFS(PrihodOdProdaje[% promjene proračuna],PrihodOdProdaje[Vrsta prihoda],\"Trošak prodaje\")","v":{"v":0,"d":"0.00%"}}]
[null,"Ukupan iznos prodaje i troškova za marketing  [M]",{"$f":"SUMIFS(OperativniTroškovi[Prethodno razdoblje],OperativniTroškovi[Vrsta troška],\"Prodaja i marketing\")","v":0},{"$f":"SUMIFS(OperativniTroškovi[Proračun],OperativniTroškovi[Vrsta troška],\"Prodaja i marketing\")","v":0},{"$f":"SUMIFS(OperativniTroškovi[Trenutačno razdoblje],OperativniTroškovi[Vrsta troška],\"Prodaja i marketing\")","v":0},{"$f":"SUMIFS(OperativniTroškovi[Trenutačno razdoblje kao % prodaje],OperativniTroškovi[Vrsta troška],\"Prodaja i marketing\")","v":{"v":0,"d":"0.00%"}},{"$f":"SUMIFS(OperativniTroškovi[% promjene u odnosu na prethodno razdoblje],OperativniTroškovi[Vrsta troška],\"Prodaja i marketing\")","v":{"v":0,"d":"0.00%"}},{"$f":"SUMIFS(OperativniTroškovi[% promjene proračuna],OperativniTroškovi[Vrsta troška],\"Prodaja i marketing\")","v":{"v":0,"d":"0.00%"}}]
[null,"Ukupni troškovi za istraživanje i razvoj  [N]",{"$f":"SUMIFS(OperativniTroškovi[Prethodno razdoblje],OperativniTroškovi[Vrsta troška],\"Istraživanje i razvoj\")","v":0},{"$f":"SUMIFS(OperativniTroškovi[Proračun],OperativniTroškovi[Vrsta troška],\"Istraživanje i razvoj\")","v":0},{"$f":"SUMIFS(OperativniTroškovi[Trenutačno razdoblje],OperativniTroškovi[Vrsta troška],\"Istraživanje i razvoj\")","v":0},{"$f":"SUMIFS(OperativniTroškovi[Trenutačno razdoblje kao % prodaje],OperativniTroškovi[Vrsta troška],\"Istraživanje i razvoj\")","v":{"v":0,"d":"0.00%"}},{"$f":"SUMIFS(OperativniTroškovi[% promjene u odnosu na prethodno razdoblje],OperativniTroškovi[Vrsta troška],\"Istraživanje i razvoj\")","v":{"v":0,"d":"0.00%"}},{"$f":"SUMIFS(OperativniTroškovi[% promjene proračuna],OperativniTroškovi[Vrsta troška],\"Istraživanje i razvoj\")","v":{"v":0,"d":"0.00%"}}]
[null,"Ukupni općeniti i administrativni troškovi  [O]",{"$f":"SUMIFS(OperativniTroškovi[Prethodno razdoblje],OperativniTroškovi[Vrsta troška],\"Općeniti i administrativni\")","v":0},{"$f":"SUMIFS(OperativniTroškovi[Proračun],OperativniTroškovi[Vrsta troška],\"Općeniti i administrativni\")","v":0},{"$f":"SUMIFS(OperativniTroškovi[Trenutačno razdoblje],OperativniTroškovi[Vrsta troška],\"Općeniti i administrativni\")","v":0},{"$f":"SUMIFS(OperativniTroškovi[Trenutačno razdoblje kao % prodaje],OperativniTroškovi[Vrsta troška],\"Općeniti i administrativni\")","v":{"v":0,"d":"0.00%"}},{"$f":"SUMIFS(OperativniTroškovi[% promjene u odnosu na prethodno razdoblje],OperativniTroškovi[Vrsta troška],\"Općeniti i administrativni\")","v":{"v":0,"d":"0.00%"}},{"$f":"SUMIFS(OperativniTroškovi[% promjene proračuna],OperativniTroškovi[Vrsta troška],\"Općeniti i administrativni\")","v":{"v":0,"d":"0.00%"}}]
[null,"Ukupni drugi operativni troškovi [P]",{"$f":"OperativniTroškovi[[#Totals],[Prethodno razdoblje]]-SUM(C12:C14)","v":0},{"$f":"OperativniTroškovi[[#Totals],[Proračun]]-SUM(D12:D14)","v":0},{"$f":"OperativniTroškovi[[#Totals],[Trenutačno razdoblje]]-SUM(E12:E14)","v":0},{"$f":"OperativniTroškovi[[#Totals],[Trenutačno razdoblje kao % prodaje]]-SUM(F12:F14)","v":{"v":0,"d":"0.00%"}},{"$f":"OperativniTroškovi[[#Totals],[% promjene u odnosu na prethodno razdoblje]]-SUM(G12:G14)","v":{"v":0,"d":"0.00%"}},{"$f":"OperativniTroškovi[[#Totals],[% promjene proračuna]]-SUM(H12:H14)","v":{"v":0,"d":"0.00%"}}]
[null,"Druga dobit [S]",{"$f":"Prihod[[#Totals],[Prethodno razdoblje]]","v":0},{"$f":"Prihod[[#Totals],[Proračun]]","v":0},{"$f":"Prihod[[#Totals],[Trenutačno razdoblje]]","v":0},{"$f":"Prihod[[#Totals],[Trenutačno razdoblje kao % prodaje]]","v":{"v":0,"d":"0.00%"}},{"$f":"Prihod[[#Totals],[% promjene u odnosu na prethodno razdoblje]]","v":{"v":0,"d":"0.00%"}},{"$f":"Prihod[[#Totals],[% promjene proračuna]]","v":{"v":0,"d":"0.00%"}}]
[null,"Ukupan iznos poreza  [T]",{"$f":"Porezi[[#Totals],[Prethodno razdoblje]]","v":0},{"$f":"Porezi[[#Totals],[Proračun]]","v":0},{"$f":"Porezi[[#Totals],[Trenutačno razdoblje]]","v":0},{"$f":"Porezi[[#Totals],[Trenutačno razdoblje kao % prodaje]]","v":{"v":0,"d":"0.00%"}},{"$f":"Porezi[[#Totals],[% promjene u odnosu na prethodno razdoblje]]","v":{"v":0,"d":"0.00%"}},{"$f":"Porezi[[#Totals],[% promjene proračuna]]","v":{"v":0,"d":"0.00%"}}]
[]
[null,"Bruto dobit  [L=J-K]",{"$f":"IFERROR(C8-C11,\"-\")","v":0},{"$f":"IFERROR(D8-D11,\"-\")","v":0},{"$f":"IFERROR(Ukupno_prihod_od_prodaje-Ukupno_trošak_prodaje,\"-\")","v":0},{"$f":"IFERROR(IF(Ukupno_prihod_od_prodaje=0,\"0.00%\",Ukupno_bruto_dobit/Ukupno_prihod_od_prodaje),\"-\")","v":"0.00%"},{"$f":"IFERROR(IF(C19=Ukupno_bruto_dobit,0,IF(Ukupno_bruto_dobit>C19,ABS((Ukupno_bruto_dobit/C19)-1),IF(AND(Ukupno_bruto_dobit<C19,C19<0),-((Ukupno_bruto_dobit/C19)-1),(Ukupno_bruto_dobit/C19)-1))),\"-\")","v":{"v":0,"d":"0.00%"}},{"$f":"IFERROR(IF(D19=Ukupno_bruto_dobit,0,IF(Ukupno_bruto_dobit>D19,ABS((Ukupno_bruto_dobit/D19)-1),IF(AND(Ukupno_bruto_dobit<D19,D19<0),-((Ukupno_bruto_dobit/D19)-1),(Ukupno_bruto_dobit/D19)-1))),\"-\")","v":{"v":0,"d":"0.00%"}}]
[null,"Ukupni operativni troškovi  [Q=M+N+O+P]",{"$f":"IFERROR(C12+C13+C14+C15,\"-\")","v":0},{"$f":"IFERROR(D12+D13+D14+D15,\"-\")","v":0},{"$f":"IFERROR(Ukupno_prodaja_i_marketing+Ukupno_istraživanje_i_razvoj+Ukupno_opći_i_administrativni+Ukupno_drugi_troškovi,\"-\")","v":0},{"$f":"IFERROR(IF(Ukupno_prihod_od_prodaje=0,\"0.00%\",Ukupno_operativni_troškovi/Ukupno_prihod_od_prodaje),\"-\")","v":"0.00%"},{"$f":"IFERROR(IF(C20=Ukupno_operativni_troškovi,0,IF(Ukupno_operativni_troškovi>C20,ABS((Ukupno_operativni_troškovi/C20)-1),IF(AND(Ukupno_operativni_troškovi<C20,C20<0),-((Ukupno_operativni_troškovi/C20)-1),(Ukupno_operativni_troškovi/C20)-1))),\"-\")","v":{"v":0,"d":"0.00%"}},{"$f":"IFERROR(IF(D20=Ukupno_operativni_troškovi,0,IF(Ukupno_operativni_troškovi>D20,ABS((Ukupno_operativni_troškovi/D20)-1),IF(AND(Ukupno_operativni_troškovi<D20,D20<0),-((Ukupno_operativni_troškovi/D20)-1),(Ukupno_operativni_troškovi/D20)-1))),\"-\")","v":{"v":0,"d":"0.00%"}}]
[null,"Dobit od operacija  [R=L-Q]",{"$f":"IFERROR(C19-C20,\"-\")","v":0},{"$f":"IFERROR(D19-D20,\"-\")","v":0},{"$f":"IFERROR(Ukupno_bruto_dobit-Ukupno_operativni_troškovi,\"-\")","v":0},{"$f":"IFERROR(IF(Ukupno_prihod_od_prodaje=0,\"0.00%\",Ukupno_dobit_od_operacija/Ukupno_prihod_od_prodaje),\"-\")","v":"0.00%"},{"$f":"IFERROR(IF(C21=Ukupno_dobit_od_operacija,0,IF(Ukupno_dobit_od_operacija>C21,ABS((Ukupno_dobit_od_operacija/C21)-1),IF(AND(Ukupno_dobit_od_operacija<C21,C21<0),-((Ukupno_dobit_od_operacija/C21)-1),(Ukupno_dobit_od_operacija/C21)-1))),\"-\")","v":{"v":0,"d":"0.00%"}},{"$f":"IFERROR(IF(D21=Ukupno_dobit_od_operacija,0,IF(Ukupno_dobit_od_operacija>D21,ABS((Ukupno_dobit_od_operacija/D21)-1),IF(AND(Ukupno_dobit_od_operacija<D21,D21<0),-((Ukupno_dobit_od_operacija/D21)-1),(Ukupno_dobit_od_operacija/D21)-1))),\"-\")","v":{"v":0,"d":"0.00%"}}]
[null,"Neto dobit  [U=R+S-T]",{"$f":"IFERROR(C21+C16-C17,\"-\")","v":0},{"$f":"IFERROR(D21+D16-D17,\"-\")","v":0},{"$f":"Ukupno_dobit_od_operacija+Ukupno_druga_dobit-Ukupno_porezi","v":0},{"$f":"IFERROR(IF(Ukupno_prihod_od_prodaje=0,\"0.00%\",Neto_dobit/Ukupno_prihod_od_prodaje),\"-\")","v":"0.00%"},{"$f":"IFERROR(IF(C22=Neto_dobit,0,IF(Neto_dobit>C22,ABS((Neto_dobit/C22)-1),IF(AND(Neto_dobit<C22,C22<0),-((Neto_dobit/C22)-1),(Neto_dobit/C22)-1))),\"-\")","v":{"v":0,"d":"0.00%"}},{"$f":"IFERROR(IF(D22=Neto_dobit,0,IF(Neto_dobit>D22,ABS((Neto_dobit/D22)-1),IF(AND(Neto_dobit<D22,D22<0),-((Neto_dobit/D22)-1),(Neto_dobit/D22)-1))),\"-\")","v":{"v":0,"d":"0.00%"}}]

{"sheet":"Prodaja","index":1,"n_rows":13,"n_cols":9,"rows_kept":13,"merged":[[0,7,2,8]]}
[null,{"$f":"Naslov_Radne_Knjige","v":"Izvješće o prihodima i rashodima"}]
[null,{"$f":"Naziv_tvrtke","v":"Naziv tvrtke"},"Navedeno u tisućama"]
[null,"Prihod od prodaje",{"$f":"IFERROR(Prihod_od_prodaje,\"-\")","v":0}]
[null,"Vrsta prihoda","Opis","Prethodno razdoblje","Proračun","Trenutačno razdoblje","Trenutačno razdoblje kao % prodaje","% promjene u odnosu na prethodno razdoblje","% promjene proračuna"]
[null,"Prihod od prodaje","Proizvod/usluga 1",{"$nulls":3},{"$f":"IFERROR(IF(PrihodOdProdaje[[#Totals],[Trenutačno razdoblje]]=0,\"-\",PrihodOdProdaje[[#This Row],[Trenutačno razdoblje]]/Prihod_od_prodaje),\"-\")","v":"-"},{"$f":"IFERROR(IF(PrihodOdProdaje[[#This Row],[Prethodno razdoblje]]=PrihodOdProdaje[[#This Row],[Trenutačno razdoblje]],0,IF(PrihodOdProdaje[[#This Row],[Trenutačno razdoblje]]>PrihodOdProdaje[[#This Row],[Prethodno razdoblje]],ABS((PrihodOdProdaje[[#This Row],[Trenutačno razdoblje]]/PrihodOdProdaje[[#This Row],[Prethodno razdoblje]])-1),IF(AND(PrihodOdProdaje[[#This Row],[Trenutačno razdoblje]]<PrihodOdProdaje[[#This Row],[Prethodno razdoblje]],PrihodOdProdaje[[#This Row],[Prethodno razdoblje]]<0),-((PrihodOdProdaje[[#This Row],[Trenutačno razdoblje]]/PrihodOdProdaje[[#This Row],[Prethodno razdoblje]])-1),(PrihodOdProdaje[[#This Row],[Trenutačno razdoblje]]/PrihodOdProdaje[[#This Row],[Prethodno razdoblje]])-1))),\"-\")","v":{"v":0,"d":"0.00%"}},{"$f":"IFERROR(IF(PrihodOdProdaje[[#This Row],[Proračun]]=PrihodOdProdaje[[#This Row],[Trenutačno razdoblje]],0,IF(PrihodOdProdaje[[#This Row],[Trenutačno razdoblje]]>PrihodOdProdaje[[#This Row],[Proračun]],ABS((PrihodOdProdaje[[#This Row],[Trenutačno razdoblje]]/PrihodOdProdaje[[#This Row],[Proračun]])-1),IF(AND(PrihodOdProdaje[[#This Row],[Trenutačno razdoblje]]<PrihodOdProdaje[[#This Row],[Proračun]],PrihodOdProdaje[[#This Row],[Proračun]]<0),-((PrihodOdProdaje[[#This Row],[Trenutačno razdoblje]]/PrihodOdProdaje[[#This Row],[Proračun]])-1),(PrihodOdProdaje[[#This Row],[Trenutačno razdoblje]]/PrihodOdProdaje[[#This Row],[Proračun]])-1))),\"-\")","v":{"v":0,"d":"0.00%"}}]
[null,"Prihod od prodaje","Proizvod/usluga 2",{"$nulls":3},{"$f":"IFERROR(IF(PrihodOdProdaje[[#Totals],[Trenutačno razdoblje]]=0,\"-\",PrihodOdProdaje[[#This Row],[Trenutačno razdoblje]]/Prihod_od_prodaje),\"-\")","v":"-"},{"$f":"IFERROR(IF(PrihodOdProdaje[[#This Row],[Prethodno razdoblje]]=PrihodOdProdaje[[#This Row],[Trenutačno razdoblje]],0,IF(PrihodOdProdaje[[#This Row],[Trenutačno razdoblje]]>PrihodOdProdaje[[#This Row],[Prethodno razdoblje]],ABS((PrihodOdProdaje[[#This Row],[Trenutačno razdoblje]]/PrihodOdProdaje[[#This Row],[Prethodno razdoblje]])-1),IF(AND(PrihodOdProdaje[[#This Row],[Trenutačno razdoblje]]<PrihodOdProdaje[[#This Row],[Prethodno razdoblje]],PrihodOdProdaje[[#This Row],[Prethodno razdoblje]]<0),-((PrihodOdProdaje[[#This Row],[Trenutačno razdoblje]]/PrihodOdProdaje[[#This Row],[Prethodno razdoblje]])-1),(PrihodOdProdaje[[#This Row],[Trenutačno razdoblje]]/PrihodOdProdaje[[#This Row],[Prethodno razdoblje]])-1))),\"-\")","v":{"v":0,"d":"0.00%"}},{"$f":"IFERROR(IF(PrihodOdProdaje[[#This Row],[Proračun]]=PrihodOdProdaje[[#This Row],[Trenutačno razdoblje]],0,IF(PrihodOdProdaje[[#This Row],[Trenutačno razdoblje]]>PrihodOdProdaje[[#This Row],[Proračun]],ABS((PrihodOdProdaje[[#This Row],[Trenutačno razdoblje]]/PrihodOdProdaje[[#This Row],[Proračun]])-1),IF(AND(PrihodOdProdaje[[#This Row],[Trenutačno razdoblje]]<PrihodOdProdaje[[#This Row],[Proračun]],PrihodOdProdaje[[#This Row],[Proračun]]<0),-((PrihodOdProdaje[[#This Row],[Trenutačno razdoblje]]/PrihodOdProdaje[[#This Row],[Proračun]])-1),(PrihodOdProdaje[[#This Row],[Trenutačno razdoblje]]/PrihodOdProdaje[[#This Row],[Proračun]])-1))),\"-\")","v":{"v":0,"d":"0.00%"}}]
[null,"Prihod od prodaje","Proizvod/usluga 3",{"$nulls":3},{"$f":"IFERROR(IF(PrihodOdProdaje[[#Totals],[Trenutačno razdoblje]]=0,\"-\",PrihodOdProdaje[[#This Row],[Trenutačno razdoblje]]/Prihod_od_prodaje),\"-\")","v":"-"},{"$f":"IFERROR(IF(PrihodOdProdaje[[#This Row],[Prethodno razdoblje]]=PrihodOdProdaje[[#This Row],[Trenutačno razdoblje]],0,IF(PrihodOdProdaje[[#This Row],[Trenutačno razdoblje]]>PrihodOdProdaje[[#This Row],[Prethodno razdoblje]],ABS((PrihodOdProdaje[[#This Row],[Trenutačno razdoblje]]/PrihodOdProdaje[[#This Row],[Prethodno razdoblje]])-1),IF(AND(PrihodOdProdaje[[#This Row],[Trenutačno razdoblje]]<PrihodOdProdaje[[#This Row],[Prethodno razdoblje]],PrihodOdProdaje[[#This Row],[Prethodno razdoblje]]<0),-((PrihodOdProdaje[[#This Row],[Trenutačno razdoblje]]/PrihodOdProdaje[[#This Row],[Prethodno razdoblje]])-1),(PrihodOdProdaje[[#This Row],[Trenutačno razdoblje]]/PrihodOdProdaje[[#This Row],[Prethodno razdoblje]])-1))),\"-\")","v":{"v":0,"d":"0.00%"}},{"$f":"IFERROR(IF(PrihodOdProdaje[[#This Row],[Proračun]]=PrihodOdProdaje[[#This Row],[Trenutačno razdoblje]],0,IF(PrihodOdProdaje[[#This Row],[Trenutačno razdoblje]]>PrihodOdProdaje[[#This Row],[Proračun]],ABS((PrihodOdProdaje[[#This Row],[Trenutačno razdoblje]]/PrihodOdProdaje[[#This Row],[Proračun]])-1),IF(AND(PrihodOdProdaje[[#This Row],[Trenutačno razdoblje]]<PrihodOdProdaje[[#This Row],[Proračun]],PrihodOdProdaje[[#This Row],[Proračun]]<0),-((PrihodOdProdaje[[#This Row],[Trenutačno razdoblje]]/PrihodOdProdaje[[#This Row],[Proračun]])-1),(PrihodOdProdaje[[#This Row],[Trenutačno razdoblje]]/PrihodOdProdaje[[#This Row],[Proračun]])-1))),\"-\")","v":{"v":0,"d":"0.00%"}}]
[null,"Prihod od prodaje","Proizvod/usluga 4",{"$nulls":3},{"$f":"IFERROR(IF(PrihodOdProdaje[[#Totals],[Trenutačno razdoblje]]=0,\"-\",PrihodOdProdaje[[#This Row],[Trenutačno razdoblje]]/Prihod_od_prodaje),\"-\")","v":"-"},{"$f":"IFERROR(IF(PrihodOdProdaje[[#This Row],[Prethodno razdoblje]]=PrihodOdProdaje[[#This Row],[Trenutačno razdoblje]],0,IF(PrihodOdProdaje[[#This Row],[Trenutačno razdoblje]]>PrihodOdProdaje[[#This Row],[Prethodno razdoblje]],ABS((PrihodOdProdaje[[#This Row],[Trenutačno razdoblje]]/PrihodOdProdaje[[#This Row],[Prethodno razdoblje]])-1),IF(AND(PrihodOdProdaje[[#This Row],[Trenutačno razdoblje]]<PrihodOdProdaje[[#This Row],[Prethodno razdoblje]],PrihodOdProdaje[[#This Row],[Prethodno razdoblje]]<0),-((PrihodOdProdaje[[#This Row],[Trenutačno razdoblje]]/PrihodOdProdaje[[#This Row],[Prethodno razdoblje]])-1),(PrihodOdProdaje[[#This Row],[Trenutačno razdoblje]]/PrihodOdProdaje[[#This Row],[Prethodno razdoblje]])-1))),\"-\")","v":{"v":0,"d":"0.00%"}},{"$f":"IFERROR(IF(PrihodOdProdaje[[#This Row],[Proračun]]=PrihodOdProdaje[[#This Row],[Trenutačno razdoblje]],0,IF(PrihodOdProdaje[[#This Row],[Trenutačno razdoblje]]>PrihodOdProdaje[[#This Row],[Proračun]],ABS((PrihodOdProdaje[[#This Row],[Trenutačno razdoblje]]/PrihodOdProdaje[[#This Row],[Proračun]])-1),IF(AND(PrihodOdProdaje[[#This Row],[Trenutačno razdoblje]]<PrihodOdProdaje[[#This Row],[Proračun]],PrihodOdProdaje[[#This Row],[Proračun]]<0),-((PrihodOdProdaje[[#This Row],[Trenutačno razdoblje]]/PrihodOdProdaje[[#This Row],[Proračun]])-1),(PrihodOdProdaje[[#This Row],[Trenutačno razdoblje]]/PrihodOdProdaje[[#This Row],[Proračun]])-1))),\"-\")","v":{"v":0,"d":"0.00%"}}]
[null,"Trošak prodaje","Proizvod/usluga 1",{"$nulls":3},{"$f":"IFERROR(IF(PrihodOdProdaje[[#Totals],[Trenutačno razdoblje]]=0,\"-\",PrihodOdProdaje[[#This Row],[Trenutačno razdoblje]]/Prihod_od_prodaje),\"-\")","v":"-"},{"$f":"IFERROR(IF(PrihodOdProdaje[[#This Row],[Prethodno razdoblje]]=PrihodOdProdaje[[#This Row],[Trenutačno razdoblje]],0,IF(PrihodOdProdaje[[#This Row],[Trenutačno razdoblje]]>PrihodOdProdaje[[#This Row],[Prethodno razdoblje]],ABS((PrihodOdProdaje[[#This Row],[Trenutačno razdoblje]]/PrihodOdProdaje[[#This Row],[Prethodno razdoblje]])-1),IF(AND(PrihodOdProdaje[[#This Row],[Trenutačno razdoblje]]<PrihodOdProdaje[[#This Row],[Prethodno razdoblje]],PrihodOdProdaje[[#This Row],[Prethodno razdoblje]]<0),-((PrihodOdProdaje[[#This Row],[Trenutačno razdoblje]]/PrihodOdProdaje[[#This Row],[Prethodno razdoblje]])-1),(PrihodOdProdaje[[#This Row],[Trenutačno razdoblje]]/PrihodOdProdaje[[#This Row],[Prethodno razdoblje]])-1))),\"-\")","v":{"v":0,"d":"0.00%"}},{"$f":"IFERROR(IF(PrihodOdProdaje[[#This Row],[Proračun]]=PrihodOdProdaje[[#This Row],[Trenutačno razdoblje]],0,IF(PrihodOdProdaje[[#This Row],[Trenutačno razdoblje]]>PrihodOdProdaje[[#This Row],[Proračun]],ABS((PrihodOdProdaje[[#This Row],[Trenutačno razdoblje]]/PrihodOdProdaje[[#This Row],[Proračun]])-1),IF(AND(PrihodOdProdaje[[#This Row],[Trenutačno razdoblje]]<PrihodOdProdaje[[#This Row],[Proračun]],PrihodOdProdaje[[#This Row],[Proračun]]<0),-((PrihodOdProdaje[[#This Row],[Trenutačno razdoblje]]/PrihodOdProdaje[[#This Row],[Proračun]])-1),(PrihodOdProdaje[[#This Row],[Trenutačno razdoblje]]/PrihodOdProdaje[[#This Row],[Proračun]])-1))),\"-\")","v":{"v":0,"d":"0.00%"}}]
[null,"Trošak prodaje","Proizvod/usluga 2",{"$nulls":3},{"$f":"IFERROR(IF(PrihodOdProdaje[[#Totals],[Trenutačno razdoblje]]=0,\"-\",PrihodOdProdaje[[#This Row],[Trenutačno razdoblje]]/Prihod_od_prodaje),\"-\")","v":"-"},{"$f":"IFERROR(IF(PrihodOdProdaje[[#This Row],[Prethodno razdoblje]]=PrihodOdProdaje[[#This Row],[Trenutačno razdoblje]],0,IF(PrihodOdProdaje[[#This Row],[Trenutačno razdoblje]]>PrihodOdProdaje[[#This Row],[Prethodno razdoblje]],ABS((PrihodOdProdaje[[#This Row],[Trenutačno razdoblje]]/PrihodOdProdaje[[#This Row],[Prethodno razdoblje]])-1),IF(AND(PrihodOdProdaje[[#This Row],[Trenutačno razdoblje]]<PrihodOdProdaje[[#This Row],[Prethodno razdoblje]],PrihodOdProdaje[[#This Row],[Prethodno razdoblje]]<0),-((PrihodOdProdaje[[#This Row],[Trenutačno razdoblje]]/PrihodOdProdaje[[#This Row],[Prethodno razdoblje]])-1),(PrihodOdProdaje[[#This Row],[Trenutačno razdoblje]]/PrihodOdProdaje[[#This Row],[Prethodno razdoblje]])-1))),\"-\")","v":{"v":0,"d":"0.00%"}},{"$f":"IFERROR(IF(PrihodOdProdaje[[#This Row],[Proračun]]=PrihodOdProdaje[[#This Row],[Trenutačno razdoblje]],0,IF(PrihodOdProdaje[[#This Row],[Trenutačno razdoblje]]>PrihodOdProdaje[[#This Row],[Proračun]],ABS((PrihodOdProdaje[[#This Row],[Trenutačno razdoblje]]/PrihodOdProdaje[[#This Row],[Proračun]])-1),IF(AND(PrihodOdProdaje[[#This Row],[Trenutačno razdoblje]]<PrihodOdProdaje[[#This Row],[Proračun]],PrihodOdProdaje[[#This Row],[Proračun]]<0),-((PrihodOdProdaje[[#This Row],[Trenutačno razdoblje]]/PrihodOdProdaje[[#This Row],[Proračun]])-1),(PrihodOdProdaje[[#This Row],[Trenutačno razdoblje]]/PrihodOdProdaje[[#This Row],[Proračun]])-1))),\"-\")","v":{"v":0,"d":"0.00%"}}]
[null,"Trošak prodaje","Proizvod/usluga 3",{"$nulls":3},{"$f":"IFERROR(IF(PrihodOdProdaje[[#Totals],[Trenutačno razdoblje]]=0,\"-\",PrihodOdProdaje[[#This Row],[Trenutačno razdoblje]]/Prihod_od_prodaje),\"-\")","v":"-"},{"$f":"IFERROR(IF(PrihodOdProdaje[[#This Row],[Prethodno razdoblje]]=PrihodOdProdaje[[#This Row],[Trenutačno razdoblje]],0,IF(PrihodOdProdaje[[#This Row],[Trenutačno razdoblje]]>PrihodOdProdaje[[#This Row],[Prethodno razdoblje]],ABS((PrihodOdProdaje[[#This Row],[Trenutačno razdoblje]]/PrihodOdProdaje[[#This Row],[Prethodno razdoblje]])-1),IF(AND(PrihodOdProdaje[[#This Row],[Trenutačno razdoblje]]<PrihodOdProdaje[[#This Row],[Prethodno razdoblje]],PrihodOdProdaje[[#This Row],[Prethodno razdoblje]]<0),-((PrihodOdProdaje[[#This Row],[Trenutačno razdoblje]]/PrihodOdProdaje[[#This Row],[Prethodno razdoblje]])-1),(PrihodOdProdaje[[#This Row],[Trenutačno razdoblje]]/PrihodOdProdaje[[#This Row],[Prethodno razdoblje]])-1))),\"-\")","v":{"v":0,"d":"0.00%"}},{"$f":"IFERROR(IF(PrihodOdProdaje[[#This Row],[Proračun]]=PrihodOdProdaje[[#This Row],[Trenutačno razdoblje]],0,IF(PrihodOdProdaje[[#This Row],[Trenutačno razdoblje]]>PrihodOdProdaje[[#This Row],[Proračun]],ABS((PrihodOdProdaje[[#This Row],[Trenutačno razdoblje]]/PrihodOdProdaje[[#This Row],[Proračun]])-1),IF(AND(PrihodOdProdaje[[#This Row],[Trenutačno razdoblje]]<PrihodOdProdaje[[#This Row],[Proračun]],PrihodOdProdaje[[#This Row],[Proračun]]<0),-((PrihodOdProdaje[[#This Row],[Trenutačno razdoblje]]/PrihodOdProdaje[[#This Row],[Proračun]])-1),(PrihodOdProdaje[[#This Row],[Trenutačno razdoblje]]/PrihodOdProdaje[[#This Row],[Proračun]])-1))),\"-\")","v":{"v":0,"d":"0.00%"}}]
[null,"Trošak prodaje","Proizvod/usluga 4",{"$nulls":3},{"$f":"IFERROR(IF(PrihodOdProdaje[[#Totals],[Trenutačno razdoblje]]=0,\"-\",PrihodOdProdaje[[#This Row],[Trenutačno razdoblje]]/Prihod_od_prodaje),\"-\")","v":"-"},{"$f":"IFERROR(IF(PrihodOdProdaje[[#This Row],[Prethodno razdoblje]]=PrihodOdProdaje[[#This Row],[Trenutačno razdoblje]],0,IF(PrihodOdProdaje[[#This Row],[Trenutačno razdoblje]]>PrihodOdProdaje[[#This Row],[Prethodno razdoblje]],ABS((PrihodOdProdaje[[#This Row],[Trenutačno razdoblje]]/PrihodOdProdaje[[#This Row],[Prethodno razdoblje]])-1),IF(AND(PrihodOdProdaje[[#This Row],[Trenutačno razdoblje]]<PrihodOdProdaje[[#This Row],[Prethodno razdoblje]],PrihodOdProdaje[[#This Row],[Prethodno razdoblje]]<0),-((PrihodOdProdaje[[#This Row],[Trenutačno razdoblje]]/PrihodOdProdaje[[#This Row],[Prethodno razdoblje]])-1),(PrihodOdProdaje[[#This Row],[Trenutačno razdoblje]]/PrihodOdProdaje[[#This Row],[Prethodno razdoblje]])-1))),\"-\")","v":{"v":0,"d":"0.00%"}},{"$f":"IFERROR(IF(PrihodOdProdaje[[#This Row],[Proračun]]=PrihodOdProdaje[[#This Row],[Trenutačno razdoblje]],0,IF(PrihodOdProdaje[[#This Row],[Trenutačno razdoblje]]>PrihodOdProdaje[[#This Row],[Proračun]],ABS((PrihodOdProdaje[[#This Row],[Trenutačno razdoblje]]/PrihodOdProdaje[[#This Row],[Proračun]])-1),IF(AND(PrihodOdProdaje[[#This Row],[Trenutačno razdoblje]]<PrihodOdProdaje[[#This Row],[Proračun]],PrihodOdProdaje[[#This Row],[Proračun]]<0),-((PrihodOdProdaje[[#This Row],[Trenutačno razdoblje]]/PrihodOdProdaje[[#This Row],[Proračun]])-1),(PrihodOdProdaje[[#This Row],[Trenutačno razdoblje]]/PrihodOdProdaje[[#This Row],[Proračun]])-1))),\"-\")","v":{"v":0,"d":"0.00%"}}]
[null,"Ukupni prihod od prodaje",null,{"$f":"SUBTOTAL(109,PrihodOdProdaje[Prethodno razdoblje])","v":0},{"$f":"SUBTOTAL(109,PrihodOdProdaje[Proračun])","v":0},{"$f":"SUBTOTAL(109,PrihodOdProdaje[Trenutačno razdoblje])","v":0},{"$f":"SUBTOTAL(109,PrihodOdProdaje[Trenutačno razdoblje kao % prodaje])","v":{"v":0,"d":"0.00%"}},{"$f":"SUBTOTAL(109,PrihodOdProdaje[% promjene u odnosu na prethodno razdoblje])","v":{"v":0,"d":"0.00%"}},{"$f":"SUBTOTAL(109,PrihodOdProdaje[% promjene proračuna])","v":{"v":0,"d":"0.00%"}}]

{"sheet":"Dobit","index":2,"n_rows":7,"n_cols":9,"rows_kept":7,"merged":[[0,7,2,8]]}
[null,{"$f":"Naslov_Radne_Knjige","v":"Izvješće o prihodima i rashodima"}]
[null,{"$f":"Naziv_tvrtke","v":"Naziv tvrtke"},"Navedeno u tisućama"]
[null,"Dobit",{"$f":"IFERROR(Prihod[[#Totals],[Trenutačno razdoblje]],\"-\")","v":0}]
[null,"Vrsta dobiti","Opis","Prethodno razdoblje","Proračun","Trenutačno razdoblje","Trenutačno razdoblje kao % prodaje","% promjene u odnosu na prethodno razdoblje","% promjene proračuna"]
[null,"Dobit","Druga dobit",{"$nulls":3},{"$f":"IFERROR(IF(Prihod_od_prodaje=0,\"-\",Prihod[[#This Row],[Trenutačno razdoblje]]/Prihod_od_prodaje),\"-\")","v":"-"},{"$f":"IFERROR(IF(Prihod[[#This Row],[Prethodno razdoblje]]=Prihod[[#This Row],[Trenutačno razdoblje]],0,IF(Prihod[[#This Row],[Trenutačno razdoblje]]>Prihod[[#This Row],[Prethodno razdoblje]],ABS((Prihod[[#This Row],[Trenutačno razdoblje]]/Prihod[[#This Row],[Prethodno razdoblje]])-1),IF(AND(Prihod[[#This Row],[Trenutačno razdoblje]]<Prihod[[#This Row],[Prethodno razdoblje]],Prihod[[#This Row],[Prethodno razdoblje]]<0),-((Prihod[[#This Row],[Trenutačno razdoblje]]/Prihod[[#This Row],[Prethodno razdoblje]])-1),(Prihod[[#This Row],[Trenutačno razdoblje]]/Prihod[[#This Row],[Prethodno razdoblje]])-1))),\"-\")","v":{"v":0,"d":"0.00%"}},{"$f":"IFERROR(IF(Prihod[[#This Row],[Proračun]]=Prihod[[#This Row],[Trenutačno razdoblje]],0,IF(Prihod[[#This Row],[Trenutačno razdoblje]]>Prihod[[#This Row],[Proračun]],ABS((Prihod[[#This Row],[Trenutačno razdoblje]]/Prihod[[#This Row],[Proračun]])-1),IF(AND(Prihod[[#This Row],[Trenutačno razdoblje]]<Prihod[[#This Row],[Proračun]],Prihod[[#This Row],[Proračun]]<0),-((Prihod[[#This Row],[Trenutačno razdoblje]]/Prihod[[#This Row],[Proračun]])-1),(Prihod[[#This Row],[Trenutačno razdoblje]]/Prihod[[#This Row],[Proračun]])-1))),\"-\")","v":{"v":0,"d":"0.00%"}}]
[{"$nulls":6},{"$f":"IFERROR(IF(Prihod_od_prodaje=0,\"-\",Prihod[[#This Row],[Trenutačno razdoblje]]/Prihod_od_prodaje),\"-\")","v":"-"},{"$f":"IFERROR(IF(Prihod[[#This Row],[Prethodno razdoblje]]=Prihod[[#This Row],[Trenutačno razdoblje]],0,IF(Prihod[[#This Row],[Trenutačno razdoblje]]>Prihod[[#This Row],[Prethodno razdoblje]],ABS((Prihod[[#This Row],[Trenutačno razdoblje]]/Prihod[[#This Row],[Prethodno razdoblje]])-1),IF(AND(Prihod[[#This Row],[Trenutačno razdoblje]]<Prihod[[#This Row],[Prethodno razdoblje]],Prihod[[#This Row],[Prethodno razdoblje]]<0),-((Prihod[[#This Row],[Trenutačno razdoblje]]/Prihod[[#This Row],[Prethodno razdoblje]])-1),(Prihod[[#This Row],[Trenutačno razdoblje]]/Prihod[[#This Row],[Prethodno razdoblje]])-1))),\"-\")","v":{"v":0,"d":"0.00%"}},{"$f":"IFERROR(IF(Prihod[[#This Row],[Proračun]]=Prihod[[#This Row],[Trenutačno razdoblje]],0,IF(Prihod[[#This Row],[Trenutačno razdoblje]]>Prihod[[#This Row],[Proračun]],ABS((Prihod[[#This Row],[Trenutačno razdoblje]]/Prihod[[#This Row],[Proračun]])-1),IF(AND(Prihod[[#This Row],[Trenutačno razdoblje]]<Prihod[[#This Row],[Proračun]],Prihod[[#This Row],[Proračun]]<0),-((Prihod[[#This Row],[Trenutačno razdoblje]]/Prihod[[#This Row],[Proračun]])-1),(Prihod[[#This Row],[Trenutačno razdoblje]]/Prihod[[#This Row],[Proračun]])-1))),\"-\")","v":{"v":0,"d":"0.00%"}}]
[null,"Ukupna dobit od prodaje",null,{"$f":"SUBTOTAL(109,Prihod[Prethodno razdoblje])","v":0},{"$f":"SUBTOTAL(109,Prihod[Proračun])","v":0},{"$f":"SUBTOTAL(109,Prihod[Trenutačno razdoblje])","v":0},{"$f":"SUBTOTAL(109,Prihod[Trenutačno razdoblje kao % prodaje])","v":{"v":0,"d":"0.00%"}},{"$f":"SUBTOTAL(109,Prihod[% promjene u odnosu na prethodno razdoblje])","v":{"v":0,"d":"0.00%"}},{"$f":"SUBTOTAL(109,Prihod[% promjene proračuna])","v":{"v":0,"d":"0.00%"}}]

{"sheet":"Troškovi","index":3,"n_rows":25,"n_cols":9,"rows_kept":25,"merged":[[0,7,2,8]]}
[null,{"$f":"Naslov_Radne_Knjige","v":"Izvješće o prihodima i rashodima"}]
[null,{"$f":"Naziv_tvrtke","v":"Naziv tvrtke"},"Navedeno u tisućama"]
[null,"Operativni troškovi",{"$f":"IFERROR(OperativniTroškovi[[#Totals],[Trenutačno razdoblje]],\"-\")","v":0}]
[null,"Vrsta troška","Opis","Prethodno razdoblje","Proračun","Trenutačno razdoblje","Trenutačno razdoblje kao % prodaje","% promjene u odnosu na prethodno razdoblje","% promjene proračuna"]
[null,"Prodaja i marketing","Oglašavanje",{"$nulls":3},{"$f":"IFERROR(IF(Prihod_od_prodaje=0,\"-\",OperativniTroškovi[[#This Row],[Trenutačno razdoblje]]/Prihod_od_prodaje),\"-\")","v":"-"},{"$f":"IFERROR(IF(OperativniTroškovi[[#This Row],[Prethodno razdoblje]]=OperativniTroškovi[[#This Row],[Trenutačno razdoblje]],0,IF(OperativniTroškovi[[#This Row],[Trenutačno razdoblje]]>OperativniTroškovi[[#This Row],[Prethodno razdoblje]],ABS((OperativniTroškovi[[#This Row],[Trenutačno razdoblje]]/OperativniTroškovi[[#This Row],[Prethodno razdoblje]])-1),IF(AND(OperativniTroškovi[[#This Row],[Trenutačno razdoblje]]<OperativniTroškovi[[#This Row],[Prethodno razdoblje]],OperativniTroškovi[[#This Row],[Prethodno razdoblje]]<0),-((OperativniTroškovi[[#This Row],[Trenutačno razdoblje]]/OperativniTroškovi[[#This Row],[Prethodno razdoblje]])-1),(OperativniTroškovi[[#This Row],[Trenutačno razdoblje]]/OperativniTroškovi[[#This Row],[Prethodno razdoblje]])-1))),\"-\")","v":{"v":0,"d":"0.00%"}},{"$f":"IFERROR(IF(OperativniTroškovi[[#This Row],[Proračun]]=OperativniTroškovi[[#This Row],[Trenutačno razdoblje]],0,IF(OperativniTroškovi[[#This Row],[Trenutačno razdoblje]]>OperativniTroškovi[[#This Row],[Proračun]],ABS((OperativniTroškovi[[#This Row],[Trenutačno razdoblje]]/OperativniTroškovi[[#This Row],[Proračun]])-1),IF(AND(OperativniTroškovi[[#This Row],[Trenutačno razdoblje]]<OperativniTroškovi[[#This Row],[Proračun]],OperativniTroškovi[[#This Row],[Proračun]]<0),-((OperativniTroškovi[[#This Row],[Trenutačno razdoblje]]/OperativniTroškovi[[#This Row],[Proračun]])-1),(OperativniTroškovi[[#This Row],[Trenutačno razdoblje]]/OperativniTroškovi[[#This Row],[Proračun]])-1))),\"-\")","v":{"v":0,"d":"0.00%"}}]
[null,"Prodaja i marketing","Izravni marketing",{"$nulls":3},{"$f":"IFERROR(IF(Prihod_od_prodaje=0,\"-\",OperativniTroškovi[[#This Row],[Trenutačno razdoblje]]/Prihod_od_prodaje),\"-\")","v":"-"},{"$f":"IFERROR(IF(OperativniTroškovi[[#This Row],[Prethodno razdoblje]]=OperativniTroškovi[[#This Row],[Trenutačno razdoblje]],0,IF(OperativniTroškovi[[#This Row],[Trenutačno razdoblje]]>OperativniTroškovi[[#This Row],[Prethodno razdoblje]],ABS((OperativniTroškovi[[#This Row],[Trenutačno razdoblje]]/OperativniTroškovi[[#This Row],[Prethodno razdoblje]])-1),IF(AND(OperativniTroškovi[[#This Row],[Trenutačno razdoblje]]<OperativniTroškovi[[#This Row],[Prethodno razdoblje]],OperativniTroškovi[[#This Row],[Prethodno razdoblje]]<0),-((OperativniTroškovi[[#This Row],[Trenutačno razdoblje]]/OperativniTroškovi[[#This Row],[Prethodno razdoblje]])-1),(OperativniTroškovi[[#This Row],[Trenutačno razdoblje]]/OperativniTroškovi[[#This Row],[Prethodno razdoblje]])-1))),\"-\")","v":{"v":0,"d":"0.00%"}},{"$f":"IFERROR(IF(OperativniTroškovi[[#This Row],[Proračun]]=OperativniTroškovi[[#This Row],[Trenutačno razdoblje]],0,IF(OperativniTroškovi[[#This Row],[Trenutačno razdoblje]]>OperativniTroškovi[[#This Row],[Proračun]],ABS((OperativniTroškovi[[#This Row],[Trenutačno razdoblje]]/OperativniTroškovi[[#This Row],[Proračun]])-1),IF(AND(OperativniTroškovi[[#This Row],[Trenutačno razdoblje]]<OperativniTroškovi[[#This Row],[Proračun]],OperativniTroškovi[[#This Row],[Proračun]]<0),-((OperativniTroškovi[[#This Row],[Trenutačno razdoblje]]/OperativniTroškovi[[#This Row],[Proračun]])-1),(OperativniTroškovi[[#This Row],[Trenutačno razdoblje]]/OperativniTroškovi[[#This Row],[Proračun]])-1))),\"-\")","v":{"v":0,"d":"0.00%"}}]
[null,"Prodaja i marketing","Drugi troškovi (navedite)",{"$nulls":3},{"$f":"IFERROR(IF(Prihod_od_prodaje=0,\"-\",OperativniTroškovi[[#This Row],[Trenutačno razdoblje]]/Prihod_od_prodaje),\"-\")","v":"-"},{"$f":"IFERROR(IF(OperativniTroškovi[[#This Row],[Prethodno razdoblje]]=OperativniTroškovi[[#This Row],[Trenutačno razdoblje]],0,IF(OperativniTroškovi[[#This Row],[Trenutačno razdoblje]]>OperativniTroškovi[[#This Row],[Prethodno razdoblje]],ABS((OperativniTroškovi[[#This Row],[Trenutačno razdoblje]]/OperativniTroškovi[[#This Row],[Prethodno razdoblje]])-1),IF(AND(OperativniTroškovi[[#This Row],[Trenutačno razdoblje]]<OperativniTroškovi[[#This Row],[Prethodno razdoblje]],OperativniTroškovi[[#This Row],[Prethodno razdoblje]]<0),-((OperativniTroškovi[[#This Row],[Trenutačno razdoblje]]/OperativniTroškovi[[#This Row],[Prethodno razdoblje]])-1),(OperativniTroškovi[[#This Row],[Trenutačno razdoblje]]/OperativniTroškovi[[#This Row],[Prethodno razdoblje]])-1))),\"-\")","v":{"v":0,"d":"0.00%"}},{"$f":"IFERROR(IF(OperativniTroškovi[[#This Row],[Proračun]]=OperativniTroškovi[[#This Row],[Trenutačno razdoblje]],0,IF(OperativniTroškovi[[#This Row],[Trenutačno razdoblje]]>OperativniTroškovi[[#This Row],[Proračun]],ABS((OperativniTroškovi[[#This Row],[Trenutačno razdoblje]]/OperativniTroškovi[[#This Row],[Proračun]])-1),IF(AND(OperativniTroškovi[[#This Row],[Trenutačno razdoblje]]<OperativniTroškovi[[#This Row],[Proračun]],OperativniTroškovi[[#This Row],[Proračun]]<0),-((OperativniTroškovi[[#This Row],[Trenutačno razdoblje]]/OperativniTroškovi[[#This Row],[Proračun]])-1),(OperativniTroškovi[[#This Row],[Trenutačno razdoblje]]/OperativniTroškovi[[#This Row],[Proračun]])-1))),\"-\")","v":{"v":0,"d":"0.00%"}}]
[null,"Prodaja i marketing","Drugi troškovi (navedite)",{"$nulls":3},{"$f":"IFERROR(IF(Prihod_od_prodaje=0,\"-\",OperativniTroškovi[[#This Row],[Trenutačno razdoblje]]/Prihod_od_prodaje),\"-\")","v":"-"},{"$f":"IFERROR(IF(OperativniTroškovi[[#This Row],[Prethodno razdoblje]]=OperativniTroškovi[[#This Row],[Trenutačno razdoblje]],0,IF(OperativniTroškovi[[#This Row],[Trenutačno razdoblje]]>OperativniTroškovi[[#This Row],[Prethodno razdoblje]],ABS((OperativniTroškovi[[#This Row],[Trenutačno razdoblje]]/OperativniTroškovi[[#This Row],[Prethodno razdoblje]])-1),IF(AND(OperativniTroškovi[[#This Row],[Trenutačno razdoblje]]<OperativniTroškovi[[#This Row],[Prethodno razdoblje]],OperativniTroškovi[[#This Row],[Prethodno razdoblje]]<0),-((OperativniTroškovi[[#This Row],[Trenutačno razdoblje]]/OperativniTroškovi[[#This Row],[Prethodno razdoblje]])-1),(OperativniTroškovi[[#This Row],[Trenutačno razdoblje]]/OperativniTroškovi[[#This Row],[Prethodno razdoblje]])-1))),\"-\")","v":{"v":0,"d":"0.00%"}},{"$f":"IFERROR(IF(OperativniTroškovi[[#This Row],[Proračun]]=OperativniTroškovi[[#This Row],[Trenutačno razdoblje]],0,IF(OperativniTroškovi[[#This Row],[Trenutačno razdoblje]]>OperativniTroškovi[[#This Row],[Proračun]],ABS((OperativniTroškovi[[#This Row],[Trenutačno razdoblje]]/OperativniTroškovi[[#This Row],[Proračun]])-1),IF(AND(OperativniTroškovi[[#This Row],[Trenutačno razdoblje]]<OperativniTroškovi[[#This Row],[Proračun]],OperativniTroškovi[[#This Row],[Proračun]]<0),-((OperativniTroškovi[[#This Row],[Trenutačno razdoblje]]/OperativniTroškovi[[#This Row],[Proračun]])-1),(OperativniTroškovi[[#This Row],[Trenutačno razdoblje]]/OperativniTroškovi[[#This Row],[Proračun]])-1))),\"-\")","v":{"v":0,"d":"0.00%"}}]
[null,"Istraživanje i razvoj","Licence za tehnologije",{"$nulls":3},{"$f":"IFERROR(IF(Prihod_od_prodaje=0,\"-\",OperativniTroškovi[[#This Row],[Trenutačno razdoblje]]/Prihod_od_prodaje),\"-\")","v":"-"},{"$f":"IFERROR(IF(OperativniTroškovi[[#This Row],[Prethodno razdoblje]]=OperativniTroškovi[[#This Row],[Trenutačno razdoblje]],0,IF(OperativniTroškovi[[#This Row],[Trenutačno razdoblje]]>OperativniTroškovi[[#This Row],[Prethodno razdoblje]],ABS((OperativniTroškovi[[#This Row],[Trenutačno razdoblje]]/OperativniTroškovi[[#This Row],[Prethodno razdoblje]])-1),IF(AND(OperativniTroškovi[[#This Row],[Trenutačno razdoblje]]<OperativniTroškovi[[#This Row],[Prethodno razdoblje]],OperativniTroškovi[[#This Row],[Prethodno razdoblje]]<0),-((OperativniTroškovi[[#This Row],[Trenutačno razdoblje]]/OperativniTroškovi[[#This Row],[Prethodno razdoblje]])-1),(OperativniTroškovi[[#This Row],[Trenutačno razdoblje]]/OperativniTroškovi[[#This Row],[Prethodno razdoblje]])-1))),\"-\")","v":{"v":0,"d":"0.00%"}},{"$f":"IFERROR(IF(OperativniTroškovi[[#This Row],[Proračun]]=OperativniTroškovi[[#This Row],[Trenutačno razdoblje]],0,IF(OperativniTroškovi[[#This Row],[Trenutačno razdoblje]]>OperativniTroškovi[[#This Row],[Proračun]],ABS((OperativniTroškovi[[#This Row],[Trenutačno razdoblje]]/OperativniTroškovi[[#This Row],[Proračun]])-1),IF(AND(OperativniTroškovi[[#This Row],[Trenutačno razdoblje]]<OperativniTroškovi[[#This Row],[Proračun]],OperativniTroškovi[[#This Row],[Proračun]]<0),-((OperativniTroškovi[[#This Row],[Trenutačno razdoblje]]/OperativniTroškovi[[#This Row],[Proračun]])-1),(OperativniTroškovi[[#This Row],[Trenutačno razdoblje]]/OperativniTroškovi[[#This Row],[Proračun]])-1))),\"-\")","v":{"v":0,"d":"0.00%"}}]
[null,"Istraživanje i razvoj","Patenti ",{"$nulls":3},{"$f":"IFERROR(IF(Prihod_od_prodaje=0,\"-\",OperativniTroškovi[[#This Row],[Trenutačno razdoblje]]/Prihod_od_prodaje),\"-\")","v":"-"},{"$f":"IFERROR(IF(OperativniTroškovi[[#This Row],[Prethodno razdoblje]]=OperativniTroškovi[[#This Row],[Trenutačno razdoblje]],0,IF(OperativniTroškovi[[#This Row],[Trenutačno razdoblje]]>OperativniTroškovi[[#This Row],[Prethodno razdoblje]],ABS((OperativniTroškovi[[#This Row],[Trenutačno razdoblje]]/OperativniTroškovi[[#This Row],[Prethodno razdoblje]])-1),IF(AND(OperativniTroškovi[[#This Row],[Trenutačno razdoblje]]<OperativniTroškovi[[#This Row],[Prethodno razdoblje]],OperativniTroškovi[[#This Row],[Prethodno razdoblje]]<0),-((OperativniTroškovi[[#This Row],[Trenutačno razdoblje]]/OperativniTroškovi[[#This Row],[Prethodno razdoblje]])-1),(OperativniTroškovi[[#This Row],[Trenutačno razdoblje]]/OperativniTroškovi[[#This Row],[Prethodno razdoblje]])-1))),\"-\")","v":{"v":0,"d":"0.00%"}},{"$f":"IFERROR(IF(OperativniTroškovi[[#This Row],[Proračun]]=OperativniTroškovi[[#This Row],[Trenutačno razdoblje]],0,IF(OperativniTroškovi[[#This Row],[Trenutačno razdoblje]]>OperativniTroškovi[[#This Row],[Proračun]],ABS((OperativniTroškovi[[#This Row],[Trenutačno razdoblje]]/OperativniTroškovi[[#This Row],[Proračun]])-1),IF(AND(OperativniTroškovi[[#This Row],[Trenutačno razdoblje]]<OperativniTroškovi[[#This Row],[Proračun]],OperativniTroškovi[[#This Row],[Proračun]]<0),-((OperativniTroškovi[[#This Row],[Trenutačno razdoblje]]/OperativniTroškovi[[#This Row],[Proračun]])-1),(OperativniTroškovi[[#This Row],[Trenutačno razdoblje]]/OperativniTroškovi[[#This Row],[Proračun]])-1))),\"-\")","v":{"v":0,"d":"0.00%"}}]
[null,"Istraživanje i razvoj","Drugi troškovi (navedite)",{"$nulls":3},{"$f":"IFERROR(IF(Prihod_od_prodaje=0,\"-\",OperativniTroškovi[[#This Row],[Trenutačno razdoblje]]/Prihod_od_prodaje),\"-\")","v":"-"},{"$f":"IFERROR(IF(OperativniTroškovi[[#This Row],[Prethodno razdoblje]]=OperativniTroškovi[[#This Row],[Trenutačno razdoblje]],0,IF(OperativniTroškovi[[#This Row],[Trenutačno razdoblje]]>OperativniTroškovi[[#This Row],[Prethodno razdoblje]],ABS((OperativniTroškovi[[#This Row],[Trenutačno razdoblje]]/OperativniTroškovi[[#This Row],[Prethodno razdoblje]])-1),IF(AND(OperativniTroškovi[[#This Row],[Trenutačno razdoblje]]<OperativniTroškovi[[#This Row],[Prethodno razdoblje]],OperativniTroškovi[[#This Row],[Prethodno razdoblje]]<0),-((OperativniTroškovi[[#This Row],[Trenutačno razdoblje]]/OperativniTroškovi[[#This Row],[Prethodno razdoblje]])-1),(OperativniTroškovi[[#This Row],[Trenutačno razdoblje]]/OperativniTroškovi[[#This Row],[Prethodno razdoblje]])-1))),\"-\")","v":{"v":0,"d":"0.00%"}},{"$f":"IFERROR(IF(OperativniTroškovi[[#This Row],[Proračun]]=OperativniTroškovi[[#This Row],[Trenutačno razdoblje]],0,IF(OperativniTroškovi[[#This Row],[Trenutačno razdoblje]]>OperativniTroškovi[[#This Row],[Proračun]],ABS((OperativniTroškovi[[#This Row],[Trenutačno razdoblje]]/OperativniTroškovi[[#This Row],[Proračun]])-1),IF(AND(OperativniTroškovi[[#This Row],[Trenutačno razdoblje]]<OperativniTroškovi[[#This Row],[Proračun]],OperativniTroškovi[[#This Row],[Proračun]]<0),-((OperativniTroškovi[[#This Row],[Trenutačno razdoblje]]/OperativniTroškovi[[#This Row],[Proračun]])-1),(OperativniTroškovi[[#This Row],[Trenutačno razdoblje]]/OperativniTroškovi[[#This Row],[Proračun]])-1))),\"-\")","v":{"v":0,"d":"0.00%"}}]
[null,"Istraživanje i razvoj","Drugi troškovi (navedite)",{"$nulls":3},{"$f":"IFERROR(IF(Prihod_od_prodaje=0,\"-\",OperativniTroškovi[[#This Row],[Trenutačno razdoblje]]/Prihod_od_prodaje),\"-\")","v":"-"},{"$f":"IFERROR(IF(OperativniTroškovi[[#This Row],[Prethodno razdoblje]]=OperativniTroškovi[[#This Row],[Trenutačno razdoblje]],0,IF(OperativniTroškovi[[#This Row],[Trenutačno razdoblje]]>OperativniTroškovi[[#This Row],[Prethodno razdoblje]],ABS((OperativniTroškovi[[#This Row],[Trenutačno razdoblje]]/OperativniTroškovi[[#This Row],[Prethodno razdoblje]])-1),IF(AND(OperativniTroškovi[[#This Row],[Trenutačno razdoblje]]<OperativniTroškovi[[#This Row],[Prethodno razdoblje]],OperativniTroškovi[[#This Row],[Prethodno razdoblje]]<0),-((OperativniTroškovi[[#This Row],[Trenutačno razdoblje]]/OperativniTroškovi[[#This Row],[Prethodno razdoblje]])-1),(OperativniTroškovi[[#This Row],[Trenutačno razdoblje]]/OperativniTroškovi[[#This Row],[Prethodno razdoblje]])-1))),\"-\")","v":{"v":0,"d":"0.00%"}},{"$f":"IFERROR(IF(OperativniTroškovi[[#This Row],[Proračun]]=OperativniTroškovi[[#This Row],[Trenutačno razdoblje]],0,IF(OperativniTroškovi[[#This Row],[Trenutačno razdoblje]]>OperativniTroškovi[[#This Row],[Proračun]],ABS((OperativniTroškovi[[#This Row],[Trenutačno razdoblje]]/OperativniTroškovi[[#This Row],[Proračun]])-1),IF(AND(OperativniTroškovi[[#This Row],[Trenutačno razdoblje]]<OperativniTroškovi[[#This Row],[Proračun]],OperativniTroškovi[[#This Row],[Proračun]]<0),-((OperativniTroškovi[[#This Row],[Trenutačno razdoblje]]/OperativniTroškovi[[#This Row],[Proračun]])-1),(OperativniTroškovi[[#This Row],[Trenutačno razdoblje]]/OperativniTroškovi[[#This Row],[Proračun]])-1))),\"-\")","v":{"v":0,"d":"0.00%"}}]
[null,"Općeniti i administrativni","Plaće",{"$nulls":3},{"$f":"IFERROR(IF(Prihod_od_prodaje=0,\"-\",OperativniTroškovi[[#This Row],[Trenutačno razdoblje]]/Prihod_od_prodaje),\"-\")","v":"-"},{"$f":"IFERROR(IF(OperativniTroškovi[[#This Row],[Prethodno razdoblje]]=OperativniTroškovi[[#This Row],[Trenutačno razdoblje]],0,IF(OperativniTroškovi[[#This Row],[Trenutačno razdoblje]]>OperativniTroškovi[[#This Row],[Prethodno razdoblje]],ABS((OperativniTroškovi[[#This Row],[Trenutačno razdoblje]]/OperativniTroškovi[[#This Row],[Prethodno razdoblje]])-1),IF(AND(OperativniTroškovi[[#This Row],[Trenutačno razdoblje]]<OperativniTroškovi[[#This Row],[Prethodno razdoblje]],OperativniTroškovi[[#This Row],[Prethodno razdoblje]]<0),-((OperativniTroškovi[[#This Row],[Trenutačno razdoblje]]/OperativniTroškovi[[#This Row],[Prethodno razdoblje]])-1),(OperativniTroškovi[[#This Row],[Trenutačno razdoblje]]/OperativniTroškovi[[#This Row],[Prethodno razdoblje]])-1))),\"-\")","v":{"v":0,"d":"0.00%"}},{"$f":"IFERROR(IF(OperativniTroškovi[[#This Row],[Proračun]]=OperativniTroškovi[[#This Row],[Trenutačno razdoblje]],0,IF(OperativniTroškovi[[#This Row],[Trenutačno razdoblje]]>OperativniTroškovi[[#This Row],[Proračun]],ABS((OperativniTroškovi[[#This Row],[Trenutačno razdoblje]]/OperativniTroškovi[[#This Row],[Proračun]])-1),IF(AND(OperativniTroškovi[[#This Row],[Trenutačno razdoblje]]<OperativniTroškovi[[#This Row],[Proračun]],OperativniTroškovi[[#This Row],[Proračun]]<0),-((OperativniTroškovi[[#This Row],[Trenutačno razdoblje]]/OperativniTroškovi[[#This Row],[Proračun]])-1),(OperativniTroškovi[[#This Row],[Trenutačno razdoblje]]/OperativniTroškovi[[#This Row],[Proračun]])-1))),\"-\")","v":{"v":0,"d":"0.00%"}}]
[null,"Općeniti i administrativni","Vanjske usluge",{"$nulls":3},{"$f":"IFERROR(IF(Prihod_od_prodaje=0,\"-\",OperativniTroškovi[[#This Row],[Trenutačno razdoblje]]/Prihod_od_prodaje),\"-\")","v":"-"},{"$f":"IFERROR(IF(OperativniTroškovi[[#This Row],[Prethodno razdoblje]]=OperativniTroškovi[[#This Row],[Trenutačno razdoblje]],0,IF(OperativniTroškovi[[#This Row],[Trenutačno razdoblje]]>OperativniTroškovi[[#This Row],[Prethodno razdoblje]],ABS((OperativniTroškovi[[#This Row],[Trenutačno razdoblje]]/OperativniTroškovi[[#This Row],[Prethodno razdoblje]])-1),IF(AND(OperativniTroškovi[[#This Row],[Trenutačno razdoblje]]<OperativniTroškovi[[#This Row],[Prethodno razdoblje]],OperativniTroškovi[[#This Row],[Prethodno razdoblje]]<0),-((OperativniTroškovi[[#This Row],[Trenutačno razdoblje]]/OperativniTroškovi[[#This Row],[Prethodno razdoblje]])-1),(OperativniTroškovi[[#This Row],[Trenutačno razdoblje]]/OperativniTroškovi[[#This Row],[Prethodno razdoblje]])-1))),\"-\")","v":{"v":0,"d":"0.00%"}},{"$f":"IFERROR(IF(OperativniTroškovi[[#This Row],[Proračun]]=OperativniTroškovi[[#This Row],[Trenutačno razdoblje]],0,IF(OperativniTroškovi[[#This Row],[Trenutačno razdoblje]]>OperativniTroškovi[[#This Row],[Proračun]],ABS((OperativniTroškovi[[#This Row],[Trenutačno razdoblje]]/OperativniTroškovi[[#This Row],[Proračun]])-1),IF(AND(OperativniTroškovi[[#This Row],[Trenutačno razdoblje]]<OperativniTroškovi[[#This Row],[Proračun]],OperativniTroškovi[[#This Row],[Proračun]]<0),-((OperativniTroškovi[[#This Row],[Trenutačno razdoblje]]/OperativniTroškovi[[#This Row],[Proračun]])-1),(OperativniTroškovi[[#This Row],[Trenutačno razdoblje]]/OperativniTroškovi[[#This Row],[Proračun]])-1))),\"-\")","v":{"v":0,"d":"0.00%"}}]
[null,"Općeniti i administrativni","Potrošni materijal",{"$nulls":3},{"$f":"IFERROR(IF(Prihod_od_prodaje=0,\"-\",OperativniTroškovi[[#This Row],[Trenutačno razdoblje]]/Prihod_od_prodaje),\"-\")","v":"-"},{"$f":"IFERROR(IF(OperativniTroškovi[[#This Row],[Prethodno razdoblje]]=OperativniTroškovi[[#This Row],[Trenutačno razdoblje]],0,IF(OperativniTroškovi[[#This Row],[Trenutačno razdoblje]]>OperativniTroškovi[[#This Row],[Prethodno razdoblje]],ABS((OperativniTroškovi[[#This Row],[Trenutačno razdoblje]]/OperativniTroškovi[[#This Row],[Prethodno razdoblje]])-1),IF(AND(OperativniTroškovi[[#This Row],[Trenutačno razdoblje]]<OperativniTroškovi[[#This Row],[Prethodno razdoblje]],OperativniTroškovi[[#This Row],[Prethodno razdoblje]]<0),-((OperativniTroškovi[[#This Row],[Trenutačno razdoblje]]/OperativniTroškovi[[#This Row],[Prethodno razdoblje]])-1),(OperativniTroškovi[[#This Row],[Trenutačno razdoblje]]/OperativniTroškovi[[#This Row],[Prethodno razdoblje]])-1))),\"-\")","v":{"v":0,"d":"0.00%"}},{"$f":"IFERROR(IF(OperativniTroškovi[[#This Row],[Proračun]]=OperativniTroškovi[[#This Row],[Trenutačno razdoblje]],0,IF(OperativniTroškovi[[#This Row],[Trenutačno razdoblje]]>OperativniTroškovi[[#This Row],[Proračun]],ABS((OperativniTroškovi[[#This Row],[Trenutačno razdoblje]]/OperativniTroškovi[[#This Row],[Proračun]])-1),IF(AND(OperativniTroškovi[[#This Row],[Trenutačno razdoblje]]<OperativniTroškovi[[#This Row],[Proračun]],OperativniTroškovi[[#This Row],[Proračun]]<0),-((OperativniTroškovi[[#This Row],[Trenutačno razdoblje]]/OperativniTroškovi[[#This Row],[Proračun]])-1),(OperativniTroškovi[[#This Row],[Trenutačno razdoblje]]/OperativniTroškovi[[#This Row],[Proračun]])-1))),\"-\")","v":{"v":0,"d":"0.00%"}}]
[null,"Općeniti i administrativni","Obroci i zabava",{"$nulls":3},{"$f":"IFERROR(IF(Prihod_od_prodaje=0,\"-\",OperativniTroškovi[[#This Row],[Trenutačno razdoblje]]/Prihod_od_prodaje),\"-\")","v":"-"},{"$f":"IFERROR(IF(OperativniTroškovi[[#This Row],[Prethodno razdoblje]]=OperativniTroškovi[[#This Row],[Trenutačno razdoblje]],0,IF(OperativniTroškovi[[#This Row],[Trenutačno razdoblje]]>OperativniTroškovi[[#This Row],[Prethodno razdoblje]],ABS((OperativniTroškovi[[#This Row],[Trenutačno razdoblje]]/OperativniTroškovi[[#This Row],[Prethodno razdoblje]])-1),IF(AND(OperativniTroškovi[[#This Row],[Trenutačno razdoblje]]<OperativniTroškovi[[#This Row],[Prethodno razdoblje]],OperativniTroškovi[[#This Row],[Prethodno razdoblje]]<0),-((OperativniTroškovi[[#This Row],[Trenutačno razdoblje]]/OperativniTroškovi[[#This Row],[Prethodno razdoblje]])-1),(OperativniTroškovi[[#This Row],[Trenutačno razdoblje]]/OperativniTroškovi[[#This Row],[Prethodno razdoblje]])-1))),\"-\")","v":{"v":0,"d":"0.00%"}},{"$f":"IFERROR(IF(OperativniTroškovi[[#This Row],[Proračun]]=OperativniTroškovi[[#This Row],[Trenutačno razdoblje]],0,IF(OperativniTroškovi[[#This Row],[Trenutačno razdoblje]]>OperativniTroškovi[[#This Row],[Proračun]],ABS((OperativniTroškovi[[#This Row],[Trenutačno razdoblje]]/OperativniTroškovi[[#This Row],[Proračun]])-1),IF(AND(OperativniTroškovi[[#This Row],[Trenutačno razdoblje]]<OperativniTroškovi[[#This Row],[Proračun]],OperativniTroškovi[[#This Row],[Proračun]]<0),-((OperativniTroškovi[[#This Row],[Trenutačno razdoblje]]/OperativniTroškovi[[#This Row],[Proračun]])-1),(OperativniTroškovi[[#This Row],[Trenutačno razdoblje]]/OperativniTroškovi[[#This Row],[Proračun]])-1))),\"-\")","v":{"v":0,"d":"0.00%"}}]
[null,"Općeniti i administrativni","Stanarina",{"$nulls":3},{"$f":"IFERROR(IF(Prihod_od_prodaje=0,\"-\",OperativniTroškovi[[#This Row],[Trenutačno razdoblje]]/Prihod_od_prodaje),\"-\")","v":"-"},{"$f":"IFERROR(IF(OperativniTroškovi[[#This Row],[Prethodno razdoblje]]=OperativniTroškovi[[#This Row],[Trenutačno razdoblje]],0,IF(OperativniTroškovi[[#This Row],[Trenutačno razdoblje]]>OperativniTroškovi[[#This Row],[Prethodno razdoblje]],ABS((OperativniTroškovi[[#This Row],[Trenutačno razdoblje]]/OperativniTroškovi[[#This Row],[Prethodno razdoblje]])-1),IF(AND(OperativniTroškovi[[#This Row],[Trenutačno razdoblje]]<OperativniTroškovi[[#This Row],[Prethodno razdoblje]],OperativniTroškovi[[#This Row],[Prethodno razdoblje]]<0),-((OperativniTroškovi[[#This Row],[Trenutačno razdoblje]]/OperativniTroškovi[[#This Row],[Prethodno razdoblje]])-1),(OperativniTroškovi[[#This Row],[Trenutačno razdoblje]]/OperativniTroškovi[[#This Row],[Prethodno razdoblje]])-1))),\"-\")","v":{"v":0,"d":"0.00%"}},{"$f":"IFERROR(IF(OperativniTroškovi[[#This Row],[Proračun]]=OperativniTroškovi[[#This Row],[Trenutačno razdoblje]],0,IF(OperativniTroškovi[[#This Row],[Trenutačno razdoblje]]>OperativniTroškovi[[#This Row],[Proračun]],ABS((OperativniTroškovi[[#This Row],[Trenutačno razdoblje]]/OperativniTroškovi[[#This Row],[Proračun]])-1),IF(AND(OperativniTroškovi[[#This Row],[Trenutačno razdoblje]]<OperativniTroškovi[[#This Row],[Proračun]],OperativniTroškovi[[#This Row],[Proračun]]<0),-((OperativniTroškovi[[#This Row],[Trenutačno razdoblje]]/OperativniTroškovi[[#This Row],[Proračun]])-1),(OperativniTroškovi[[#This Row],[Trenutačno razdoblje]]/OperativniTroškovi[[#This Row],[Proračun]])-1))),\"-\")","v":{"v":0,"d":"0.00%"}}]
[null,"Općeniti i administrativni","Telefoni",{"$nulls":3},{"$f":"IFERROR(IF(Prihod_od_prodaje=0,\"-\",OperativniTroškovi[[#This Row],[Trenutačno razdoblje]]/Prihod_od_prodaje),\"-\")","v":"-"},{"$f":"IFERROR(IF(OperativniTroškovi[[#This Row],[Prethodno razdoblje]]=OperativniTroškovi[[#This Row],[Trenutačno razdoblje]],0,IF(OperativniTroškovi[[#This Row],[Trenutačno razdoblje]]>OperativniTroškovi[[#This Row],[Prethodno razdoblje]],ABS((OperativniTroškovi[[#This Row],[Trenutačno razdoblje]]/OperativniTroškovi[[#This Row],[Prethodno razdoblje]])-1),IF(AND(OperativniTroškovi[[#This Row],[Trenutačno razdoblje]]<OperativniTroškovi[[#This Row],[Prethodno razdoblje]],OperativniTroškovi[[#This Row],[Prethodno razdoblje]]<0),-((OperativniTroškovi[[#This Row],[Trenutačno razdoblje]]/OperativniTroškovi[[#This Row],[Prethodno razdoblje]])-1),(OperativniTroškovi[[#This Row],[Trenutačno razdoblje]]/OperativniTroškovi[[#This Row],[Prethodno razdoblje]])-1))),\"-\")","v":{"v":0,"d":"0.00%"}},{"$f":"IFERROR(IF(OperativniTroškovi[[#This Row],[Proračun]]=OperativniTroškovi[[#This Row],[Trenutačno razdoblje]],0,IF(OperativniTroškovi[[#This Row],[Trenutačno razdoblje]]>OperativniTroškovi[[#This Row],[Proračun]],ABS((OperativniTroškovi[[#This Row],[Trenutačno razdoblje]]/OperativniTroškovi[[#This Row],[Proračun]])-1),IF(AND(OperativniTroškovi[[#This Row],[Trenutačno razdoblje]]<OperativniTroškovi[[#This Row],[Proračun]],OperativniTroškovi[[#This Row],[Proračun]]<0),-((OperativniTroškovi[[#This Row],[Trenutačno razdoblje]]/OperativniTroškovi[[#This Row],[Proračun]])-1),(OperativniTroškovi[[#This Row],[Trenutačno razdoblje]]/OperativniTroškovi[[#This Row],[Proračun]])-1))),\"-\")","v":{"v":0,"d":"0.00%"}}]
[null,"Općeniti i administrativni","Režije",{"$nulls":3},{"$f":"IFERROR(IF(Prihod_od_prodaje=0,\"-\",OperativniTroškovi[[#This Row],[Trenutačno razdoblje]]/Prihod_od_prodaje),\"-\")","v":"-"},{"$f":"IFERROR(IF(OperativniTroškovi[[#This Row],[Prethodno razdoblje]]=OperativniTroškovi[[#This Row],[Trenutačno razdoblje]],0,IF(OperativniTroškovi[[#This Row],[Trenutačno razdoblje]]>OperativniTroškovi[[#This Row],[Prethodno razdoblje]],ABS((OperativniTroškovi[[#This Row],[Trenutačno razdoblje]]/OperativniTroškovi[[#This Row],[Prethodno razdoblje]])-1),IF(AND(OperativniTroškovi[[#This Row],[Trenutačno razdoblje]]<OperativniTroškovi[[#This Row],[Prethodno razdoblje]],OperativniTroškovi[[#This Row],[Prethodno razdoblje]]<0),-((OperativniTroškovi[[#This Row],[Trenutačno razdoblje]]/OperativniTroškovi[[#This Row],[Prethodno razdoblje]])-1),(OperativniTroškovi[[#This Row],[Trenutačno razdoblje]]/OperativniTroškovi[[#This Row],[Prethodno razdoblje]])-1))),\"-\")","v":{"v":0,"d":"0.00%"}},{"$f":"IFERROR(IF(OperativniTroškovi[[#This Row],[Proračun]]=OperativniTroškovi[[#This Row],[Trenutačno razdoblje]],0,IF(OperativniTroškovi[[#This Row],[Trenutačno razdoblje]]>OperativniTroškovi[[#This Row],[Proračun]],ABS((OperativniTroškovi[[#This Row],[Trenutačno razdoblje]]/OperativniTroškovi[[#This Row],[Proračun]])-1),IF(AND(OperativniTroškovi[[#This Row],[Trenutačno razdoblje]]<OperativniTroškovi[[#This Row],[Proračun]],OperativniTroškovi[[#This Row],[Proračun]]<0),-((OperativniTroškovi[[#This Row],[Trenutačno razdoblje]]/OperativniTroškovi[[#This Row],[Proračun]])-1),(OperativniTroškovi[[#This Row],[Trenutačno razdoblje]]/OperativniTroškovi[[#This Row],[Proračun]])-1))),\"-\")","v":{"v":0,"d":"0.00%"}}]
[null,"Općeniti i administrativni","Amortizacija",{"$nulls":3},{"$f":"IFERROR(IF(Prihod_od_prodaje=0,\"-\",OperativniTroškovi[[#This Row],[Trenutačno razdoblje]]/Prihod_od_prodaje),\"-\")","v":"-"},{"$f":"IFERROR(IF(OperativniTroškovi[[#This Row],[Prethodno razdoblje]]=OperativniTroškovi[[#This Row],[Trenutačno razdoblje]],0,IF(OperativniTroškovi[[#This Row],[Trenutačno razdoblje]]>OperativniTroškovi[[#This Row],[Prethodno razdoblje]],ABS((OperativniTroškovi[[#This Row],[Trenutačno razdoblje]]/OperativniTroškovi[[#This Row],[Prethodno razdoblje]])-1),IF(AND(OperativniTroškovi[[#This Row],[Trenutačno razdoblje]]<OperativniTroškovi[[#This Row],[Prethodno razdoblje]],OperativniTroškovi[[#This Row],[Prethodno razdoblje]]<0),-((OperativniTroškovi[[#This Row],[Trenutačno razdoblje]]/OperativniTroškovi[[#This Row],[Prethodno razdoblje]])-1),(OperativniTroškovi[[#This Row],[Trenutačno razdoblje]]/OperativniTroškovi[[#This Row],[Prethodno razdoblje]])-1))),\"-\")","v":{"v":0,"d":"0.00%"}},{"$f":"IFERROR(IF(OperativniTroškovi[[#This Row],[Proračun]]=OperativniTroškovi[[#This Row],[Trenutačno razdoblje]],0,IF(OperativniTroškovi[[#This Row],[Trenutačno razdoblje]]>OperativniTroškovi[[#This Row],[Proračun]],ABS((OperativniTroškovi[[#This Row],[Trenutačno razdoblje]]/OperativniTroškovi[[#This Row],[Proračun]])-1),IF(AND(OperativniTroškovi[[#This Row],[Trenutačno razdoblje]]<OperativniTroškovi[[#This Row],[Proračun]],OperativniTroškovi[[#This Row],[Proračun]]<0),-((OperativniTroškovi[[#This Row],[Trenutačno razdoblje]]/OperativniTroškovi[[#This Row],[Proračun]])-1),(OperativniTroškovi[[#This Row],[Trenutačno razdoblje]]/OperativniTroškovi[[#This Row],[Proračun]])-1))),\"-\")","v":{"v":0,"d":"0.00%"}}]
[null,"Općeniti i administrativni","Osiguranje",{"$nulls":3},{"$f":"IFERROR(IF(Prihod_od_prodaje=0,\"-\",OperativniTroškovi[[#This Row],[Trenutačno razdoblje]]/Prihod_od_prodaje),\"-\")","v":"-"},{"$f":"IFERROR(IF(OperativniTroškovi[[#This Row],[Prethodno razdoblje]]=OperativniTroškovi[[#This Row],[Trenutačno razdoblje]],0,IF(OperativniTroškovi[[#This Row],[Trenutačno razdoblje]]>OperativniTroškovi[[#This Row],[Prethodno razdoblje]],ABS((OperativniTroškovi[[#This Row],[Trenutačno razdoblje]]/OperativniTroškovi[[#This Row],[Prethodno razdoblje]])-1),IF(AND(OperativniTroškovi[[#This Row],[Trenutačno razdoblje]]<OperativniTroškovi[[#This Row],[Prethodno razdoblje]],OperativniTroškovi[[#This Row],[Prethodno razdoblje]]<0),-((OperativniTroškovi[[#This Row],[Trenutačno razdoblje]]/OperativniTroškovi[[#This Row],[Prethodno razdoblje]])-1),(OperativniTroškovi[[#This Row],[Trenutačno razdoblje]]/OperativniTroškovi[[#This Row],[Prethodno razdoblje]])-1))),\"-\")","v":{"v":0,"d":"0.00%"}},{"$f":"IFERROR(IF(OperativniTroškovi[[#This Row],[Proračun]]=OperativniTroškovi[[#This Row],[Trenutačno razdoblje]],0,IF(OperativniTroškovi[[#This Row],[Trenutačno razdoblje]]>OperativniTroškovi[[#This Row],[Proračun]],ABS((OperativniTroškovi[[#This Row],[Trenutačno razdoblje]]/OperativniTroškovi[[#This Row],[Proračun]])-1),IF(AND(OperativniTroškovi[[#This Row],[Trenutačno razdoblje]]<OperativniTroškovi[[#This Row],[Proračun]],OperativniTroškovi[[#This Row],[Proračun]]<0),-((OperativniTroškovi[[#This Row],[Trenutačno razdoblje]]/OperativniTroškovi[[#This Row],[Proračun]])-1),(OperativniTroškovi[[#This Row],[Trenutačno razdoblje]]/OperativniTroškovi[[#This Row],[Proračun]])-1))),\"-\")","v":{"v":0,"d":"0.00%"}}]
[null,"Općeniti i administrativni","Popravci i održavanje",{"$nulls":3},{"$f":"IFERROR(IF(Prihod_od_prodaje=0,\"-\",OperativniTroškovi[[#This Row],[Trenutačno razdoblje]]/Prihod_od_prodaje),\"-\")","v":"-"},{"$f":"IFERROR(IF(OperativniTroškovi[[#This Row],[Prethodno razdoblje]]=OperativniTroškovi[[#This Row],[Trenutačno razdoblje]],0,IF(OperativniTroškovi[[#This Row],[Trenutačno razdoblje]]>OperativniTroškovi[[#This Row],[Prethodno razdoblje]],ABS((OperativniTroškovi[[#This Row],[Trenutačno razdoblje]]/OperativniTroškovi[[#This Row],[Prethodno razdoblje]])-1),IF(AND(OperativniTroškovi[[#This Row],[Trenutačno razdoblje]]<OperativniTroškovi[[#This Row],[Prethodno razdoblje]],OperativniTroškovi[[#This Row],[Prethodno razdoblje]]<0),-((OperativniTroškovi[[#This Row],[Trenutačno razdoblje]]/OperativniTroškovi[[#This Row],[Prethodno razdoblje]])-1),(OperativniTroškovi[[#This Row],[Trenutačno razdoblje]]/OperativniTroškovi[[#This Row],[Prethodno razdoblje]])-1))),\"-\")","v":{"v":0,"d":"0.00%"}},{"$f":"IFERROR(IF(OperativniTroškovi[[#This Row],[Proračun]]=OperativniTroškovi[[#This Row],[Trenutačno razdoblje]],0,IF(OperativniTroškovi[[#This Row],[Trenutačno razdoblje]]>OperativniTroškovi[[#This Row],[Proračun]],ABS((OperativniTroškovi[[#This Row],[Trenutačno razdoblje]]/OperativniTroškovi[[#This Row],[Proračun]])-1),IF(AND(OperativniTroškovi[[#This Row],[Trenutačno razdoblje]]<OperativniTroškovi[[#This Row],[Proračun]],OperativniTroškovi[[#This Row],[Proračun]]<0),-((OperativniTroškovi[[#This Row],[Trenutačno razdoblje]]/OperativniTroškovi[[#This Row],[Proračun]])-1),(OperativniTroškovi[[#This Row],[Trenutačno razdoblje]]/OperativniTroškovi[[#This Row],[Proračun]])-1))),\"-\")","v":{"v":0,"d":"0.00%"}}]
[null,"Općeniti i administrativni","Drugi troškovi (navedite)",{"$nulls":3},{"$f":"IFERROR(IF(Prihod_od_prodaje=0,\"-\",OperativniTroškovi[[#This Row],[Trenutačno razdoblje]]/Prihod_od_prodaje),\"-\")","v":"-"},{"$f":"IFERROR(IF(OperativniTroškovi[[#This Row],[Prethodno razdoblje]]=OperativniTroškovi[[#This Row],[Trenutačno razdoblje]],0,IF(OperativniTroškovi[[#This Row],[Trenutačno razdoblje]]>OperativniTroškovi[[#This Row],[Prethodno razdoblje]],ABS((OperativniTroškovi[[#This Row],[Trenutačno razdoblje]]/OperativniTroškovi[[#This Row],[Prethodno razdoblje]])-1),IF(AND(OperativniTroškovi[[#This Row],[Trenutačno razdoblje]]<OperativniTroškovi[[#This Row],[Prethodno razdoblje]],OperativniTroškovi[[#This Row],[Prethodno razdoblje]]<0),-((OperativniTroškovi[[#This Row],[Trenutačno razdoblje]]/OperativniTroškovi[[#This Row],[Prethodno razdoblje]])-1),(OperativniTroškovi[[#This Row],[Trenutačno razdoblje]]/OperativniTroškovi[[#This Row],[Prethodno razdoblje]])-1))),\"-\")","v":{"v":0,"d":"0.00%"}},{"$f":"IFERROR(IF(OperativniTroškovi[[#This Row],[Proračun]]=OperativniTroškovi[[#This Row],[Trenutačno razdoblje]],0,IF(OperativniTroškovi[[#This Row],[Trenutačno razdoblje]]>OperativniTroškovi[[#This Row],[Proračun]],ABS((OperativniTroškovi[[#This Row],[Trenutačno razdoblje]]/OperativniTroškovi[[#This Row],[Proračun]])-1),IF(AND(OperativniTroškovi[[#This Row],[Trenutačno razdoblje]]<OperativniTroškovi[[#This Row],[Proračun]],OperativniTroškovi[[#This Row],[Proračun]]<0),-((OperativniTroškovi[[#This Row],[Trenutačno razdoblje]]/OperativniTroškovi[[#This Row],[Proračun]])-1),(OperativniTroškovi[[#This Row],[Trenutačno razdoblje]]/OperativniTroškovi[[#This Row],[Proračun]])-1))),\"-\")","v":{"v":0,"d":"0.00%"}}]
[null,"Općeniti i administrativni","Drugi troškovi (navedite)",{"$nulls":3},{"$f":"IFERROR(IF(Prihod_od_prodaje=0,\"-\",OperativniTroškovi[[#This Row],[Trenutačno razdoblje]]/Prihod_od_prodaje),\"-\")","v":"-"},{"$f":"IFERROR(IF(OperativniTroškovi[[#This Row],[Prethodno razdoblje]]=OperativniTroškovi[[#This Row],[Trenutačno razdoblje]],0,IF(OperativniTroškovi[[#This Row],[Trenutačno razdoblje]]>OperativniTroškovi[[#This Row],[Prethodno razdoblje]],ABS((OperativniTroškovi[[#This Row],[Trenutačno razdoblje]]/OperativniTroškovi[[#This Row],[Prethodno razdoblje]])-1),IF(AND(OperativniTroškovi[[#This Row],[Trenutačno razdoblje]]<OperativniTroškovi[[#This Row],[Prethodno razdoblje]],OperativniTroškovi[[#This Row],[Prethodno razdoblje]]<0),-((OperativniTroškovi[[#This Row],[Trenutačno razdoblje]]/OperativniTroškovi[[#This Row],[Prethodno razdoblje]])-1),(OperativniTroškovi[[#This Row],[Trenutačno razdoblje]]/OperativniTroškovi[[#This Row],[Prethodno razdoblje]])-1))),\"-\")","v":{"v":0,"d":"0.00%"}},{"$f":"IFERROR(IF(OperativniTroškovi[[#This Row],[Proračun]]=OperativniTroškovi[[#This Row],[Trenutačno razdoblje]],0,IF(OperativniTroškovi[[#This Row],[Trenutačno razdoblje]]>OperativniTroškovi[[#This Row],[Proračun]],ABS((OperativniTroškovi[[#This Row],[Trenutačno razdoblje]]/OperativniTroškovi[[#This Row],[Proračun]])-1),IF(AND(OperativniTroškovi[[#This Row],[Trenutačno razdoblje]]<OperativniTroškovi[[#This Row],[Proračun]],OperativniTroškovi[[#This Row],[Proračun]]<0),-((OperativniTroškovi[[#This Row],[Trenutačno razdoblje]]/OperativniTroškovi[[#This Row],[Proračun]])-1),(OperativniTroškovi[[#This Row],[Trenutačno razdoblje]]/OperativniTroškovi[[#This Row],[Proračun]])-1))),\"-\")","v":{"v":0,"d":"0.00%"}}]
[null,"Ukupni operativni troškovi",null,{"$f":"SUBTOTAL(109,OperativniTroškovi[Prethodno razdoblje])","v":0},{"$f":"SUBTOTAL(109,OperativniTroškovi[Proračun])","v":0},{"$f":"SUBTOTAL(109,OperativniTroškovi[Trenutačno razdoblje])","v":0},{"$f":"SUBTOTAL(109,OperativniTroškovi[Trenutačno razdoblje kao % prodaje])","v":{"v":0,"d":"0.00%"}},{"$f":"SUBTOTAL(109,OperativniTroškovi[% promjene u odnosu na prethodno razdoblje])","v":{"v":0,"d":"0.00%"}},{"$f":"SUBTOTAL(109,OperativniTroškovi[% promjene proračuna])","v":{"v":0,"d":"0.00%"}}]

{"sheet":"Porezi","index":4,"n_rows":10,"n_cols":9,"rows_kept":10,"merged":[[0,7,2,8]]}
[null,{"$f":"Naslov_Radne_Knjige","v":"Izvješće o prihodima i rashodima"}]
[null,{"$f":"Naziv_tvrtke","v":"Naziv tvrtke"},"Navedeno u tisućama"]
[null,"Porezi",{"$f":"IFERROR(Porezi[[#Totals],[Trenutačno razdoblje]],\"-\")","v":0}]
[null,"Vrsta","Opis","Prethodno razdoblje","Proračun","Trenutačno razdoblje","Trenutačno razdoblje kao % prodaje","% promjene u odnosu na prethodno razdoblje","% promjene proračuna"]
[null,"Porezi","Porezi na dobit",{"$nulls":3},{"$f":"IFERROR(IF(Prihod_od_prodaje=0,\"-\",Porezi[[#This Row],[Trenutačno razdoblje]]/Prihod_od_prodaje),\"-\")","v":"-"},{"$f":"IFERROR(IF(Porezi[[#This Row],[Prethodno razdoblje]]=Porezi[[#This Row],[Trenutačno razdoblje]],0,IF(Porezi[[#This Row],[Trenutačno razdoblje]]>Porezi[[#This Row],[Prethodno razdoblje]],ABS((Porezi[[#This Row],[Trenutačno razdoblje]]/Porezi[[#This Row],[Prethodno razdoblje]])-1),IF(AND(Porezi[[#This Row],[Trenutačno razdoblje]]<Porezi[[#This Row],[Prethodno razdoblje]],Porezi[[#This Row],[Prethodno razdoblje]]<0),-((Porezi[[#This Row],[Trenutačno razdoblje]]/Porezi[[#This Row],[Prethodno razdoblje]])-1),(Porezi[[#This Row],[Trenutačno razdoblje]]/Porezi[[#This Row],[Prethodno razdoblje]])-1))),\"-\")","v":{"v":0,"d":"0.00%"}},{"$f":"IFERROR(IF(Porezi[[#This Row],[Proračun]]=Porezi[[#This Row],[Trenutačno razdoblje]],0,IF(Porezi[[#This Row],[Trenutačno razdoblje]]>Porezi[[#This Row],[Proračun]],ABS((Porezi[[#This Row],[Trenutačno razdoblje]]/Porezi[[#This Row],[Proračun]])-1),IF(AND(Porezi[[#This Row],[Trenutačno razdoblje]]<Porezi[[#This Row],[Proračun]],Porezi[[#This Row],[Proračun]]<0),-((Porezi[[#This Row],[Trenutačno razdoblje]]/Porezi[[#This Row],[Proračun]])-1),(Porezi[[#This Row],[Trenutačno razdoblje]]/Porezi[[#This Row],[Proračun]])-1))),\"-\")","v":{"v":0,"d":"0.00%"}}]
[null,"Porezi","Doprinosi",{"$nulls":3},{"$f":"IFERROR(IF(Prihod_od_prodaje=0,\"-\",Porezi[[#This Row],[Trenutačno razdoblje]]/Prihod_od_prodaje),\"-\")","v":"-"},{"$f":"IFERROR(IF(Porezi[[#This Row],[Prethodno razdoblje]]=Porezi[[#This Row],[Trenutačno razdoblje]],0,IF(Porezi[[#This Row],[Trenutačno razdoblje]]>Porezi[[#This Row],[Prethodno razdoblje]],ABS((Porezi[[#This Row],[Trenutačno razdoblje]]/Porezi[[#This Row],[Prethodno razdoblje]])-1),IF(AND(Porezi[[#This Row],[Trenutačno razdoblje]]<Porezi[[#This Row],[Prethodno razdoblje]],Porezi[[#This Row],[Prethodno razdoblje]]<0),-((Porezi[[#This Row],[Trenutačno razdoblje]]/Porezi[[#This Row],[Prethodno razdoblje]])-1),(Porezi[[#This Row],[Trenutačno razdoblje]]/Porezi[[#This Row],[Prethodno razdoblje]])-1))),\"-\")","v":{"v":0,"d":"0.00%"}},{"$f":"IFERROR(IF(Porezi[[#This Row],[Proračun]]=Porezi[[#This Row],[Trenutačno razdoblje]],0,IF(Porezi[[#This Row],[Trenutačno razdoblje]]>Porezi[[#This Row],[Proračun]],ABS((Porezi[[#This Row],[Trenutačno razdoblje]]/Porezi[[#This Row],[Proračun]])-1),IF(AND(Porezi[[#This Row],[Trenutačno razdoblje]]<Porezi[[#This Row],[Proračun]],Porezi[[#This Row],[Proračun]]<0),-((Porezi[[#This Row],[Trenutačno razdoblje]]/Porezi[[#This Row],[Proračun]])-1),(Porezi[[#This Row],[Trenutačno razdoblje]]/Porezi[[#This Row],[Proračun]])-1))),\"-\")","v":{"v":0,"d":"0.00%"}}]
[null,"Porezi","Porezi na nekretnine",{"$nulls":3},{"$f":"IFERROR(IF(Prihod_od_prodaje=0,\"-\",Porezi[[#This Row],[Trenutačno razdoblje]]/Prihod_od_prodaje),\"-\")","v":"-"},{"$f":"IFERROR(IF(Porezi[[#This Row],[Prethodno razdoblje]]=Porezi[[#This Row],[Trenutačno razdoblje]],0,IF(Porezi[[#This Row],[Trenutačno razdoblje]]>Porezi[[#This Row],[Prethodno razdoblje]],ABS((Porezi[[#This Row],[Trenutačno razdoblje]]/Porezi[[#This Row],[Prethodno razdoblje]])-1),IF(AND(Porezi[[#This Row],[Trenutačno razdoblje]]<Porezi[[#This Row],[Prethodno razdoblje]],Porezi[[#This Row],[Prethodno razdoblje]]<0),-((Porezi[[#This Row],[Trenutačno razdoblje]]/Porezi[[#This Row],[Prethodno razdoblje]])-1),(Porezi[[#This Row],[Trenutačno razdoblje]]/Porezi[[#This Row],[Prethodno razdoblje]])-1))),\"-\")","v":{"v":0,"d":"0.00%"}},{"$f":"IFERROR(IF(Porezi[[#This Row],[Proračun]]=Porezi[[#This Row],[Trenutačno razdoblje]],0,IF(Porezi[[#This Row],[Trenutačno razdoblje]]>Porezi[[#This Row],[Proračun]],ABS((Porezi[[#This Row],[Trenutačno razdoblje]]/Porezi[[#This Row],[Proračun]])-1),IF(AND(Porezi[[#This Row],[Trenutačno razdoblje]]<Porezi[[#This Row],[Proračun]],Porezi[[#This Row],[Proračun]]<0),-((Porezi[[#This Row],[Trenutačno razdoblje]]/Porezi[[#This Row],[Proračun]])-1),(Porezi[[#This Row],[Trenutačno razdoblje]]/Porezi[[#This Row],[Proračun]])-1))),\"-\")","v":{"v":0,"d":"0.00%"}}]
[null,"Porezi","Drugi porezi (navesti)",{"$nulls":3},{"$f":"IFERROR(IF(Prihod_od_prodaje=0,\"-\",Porezi[[#This Row],[Trenutačno razdoblje]]/Prihod_od_prodaje),\"-\")","v":"-"},{"$f":"IFERROR(IF(Porezi[[#This Row],[Prethodno razdoblje]]=Porezi[[#This Row],[Trenutačno razdoblje]],0,IF(Porezi[[#This Row],[Trenutačno razdoblje]]>Porezi[[#This Row],[Prethodno razdoblje]],ABS((Porezi[[#This Row],[Trenutačno razdoblje]]/Porezi[[#This Row],[Prethodno razdoblje]])-1),IF(AND(Porezi[[#This Row],[Trenutačno razdoblje]]<Porezi[[#This Row],[Prethodno razdoblje]],Porezi[[#This Row],[Prethodno razdoblje]]<0),-((Porezi[[#This Row],[Trenutačno razdoblje]]/Porezi[[#This Row],[Prethodno razdoblje]])-1),(Porezi[[#This Row],[Trenutačno razdoblje]]/Porezi[[#This Row],[Prethodno razdoblje]])-1))),\"-\")","v":{"v":0,"d":"0.00%"}},{"$f":"IFERROR(IF(Porezi[[#This Row],[Proračun]]=Porezi[[#This Row],[Trenutačno razdoblje]],0,IF(Porezi[[#This Row],[Trenutačno razdoblje]]>Porezi[[#This Row],[Proračun]],ABS((Porezi[[#This Row],[Trenutačno razdoblje]]/Porezi[[#This Row],[Proračun]])-1),IF(AND(Porezi[[#This Row],[Trenutačno razdoblje]]<Porezi[[#This Row],[Proračun]],Porezi[[#This Row],[Proračun]]<0),-((Porezi[[#This Row],[Trenutačno razdoblje]]/Porezi[[#This Row],[Proračun]])-1),(Porezi[[#This Row],[Trenutačno razdoblje]]/Porezi[[#This Row],[Proračun]])-1))),\"-\")","v":{"v":0,"d":"0.00%"}}]
[null,"Porezi","Drugi porezi (navesti)",{"$nulls":3},{"$f":"IFERROR(IF(Prihod_od_prodaje=0,\"-\",Porezi[[#This Row],[Trenutačno razdoblje]]/Prihod_od_prodaje),\"-\")","v":"-"},{"$f":"IFERROR(IF(Porezi[[#This Row],[Prethodno razdoblje]]=Porezi[[#This Row],[Trenutačno razdoblje]],0,IF(Porezi[[#This Row],[Trenutačno razdoblje]]>Porezi[[#This Row],[Prethodno razdoblje]],ABS((Porezi[[#This Row],[Trenutačno razdoblje]]/Porezi[[#This Row],[Prethodno razdoblje]])-1),IF(AND(Porezi[[#This Row],[Trenutačno razdoblje]]<Porezi[[#This Row],[Prethodno razdoblje]],Porezi[[#This Row],[Prethodno razdoblje]]<0),-((Porezi[[#This Row],[Trenutačno razdoblje]]/Porezi[[#This Row],[Prethodno razdoblje]])-1),(Porezi[[#This Row],[Trenutačno razdoblje]]/Porezi[[#This Row],[Prethodno razdoblje]])-1))),\"-\")","v":{"v":0,"d":"0.00%"}},{"$f":"IFERROR(IF(Porezi[[#This Row],[Proračun]]=Porezi[[#This Row],[Trenutačno razdoblje]],0,IF(Porezi[[#This Row],[Trenutačno razdoblje]]>Porezi[[#This Row],[Proračun]],ABS((Porezi[[#This Row],[Trenutačno razdoblje]]/Porezi[[#This Row],[Proračun]])-1),IF(AND(Porezi[[#This Row],[Trenutačno razdoblje]]<Porezi[[#This Row],[Proračun]],Porezi[[#This Row],[Proračun]]<0),-((Porezi[[#This Row],[Trenutačno razdoblje]]/Porezi[[#This Row],[Proračun]])-1),(Porezi[[#This Row],[Trenutačno razdoblje]]/Porezi[[#This Row],[Proračun]])-1))),\"-\")","v":{"v":0,"d":"0.00%"}}]
[null,"Ukupni iznos poreza",null,{"$f":"SUBTOTAL(109,Porezi[Prethodno razdoblje])","v":0},{"$f":"SUBTOTAL(109,Porezi[Proračun])","v":0},{"$f":"SUBTOTAL(109,Porezi[Trenutačno razdoblje])","v":0},{"$f":"IFERROR(SUBTOTAL(109,Porezi[Trenutačno razdoblje kao % prodaje]),\"-\")","v":{"v":0,"d":"0.00%"}},{"$f":"SUBTOTAL(109,Porezi[% promjene u odnosu na prethodno razdoblje])","v":{"v":0,"d":"0.00%"}},{"$f":"SUBTOTAL(109,Porezi[% promjene proračuna])","v":{"v":0,"d":"0.00%"}}]

{"sheet":"Kategorije","index":5,"n_rows":8,"n_cols":2,"rows_kept":8}
[null,"Kategorije"]
[null,"Prihod od prodaje"]
[null,"Trošak prodaje"]
[null,"Dobit"]
[null,"Prodaja i marketing"]
[null,"Istraživanje i razvoj"]
[null,"Općeniti i administrativni"]
[null,"Porezi"]